Workbook

Sheet Summary
A3: Paragon Mortgages (No.11) PLC
A5: Information as at the Principal Determination Date | B5: 2006-06-30 | C5: 2006-09-29 | D5: 2006-12-29 | E5: 2007-03-30 | F5: 2007-06-29 | G5: 2007-09-28 | H5: 2007-12-31 | I5: 2008-03-31 | J5: 2008-06-30 | K5: 2008-09-30 | L5: 2008-12-31 | M5: 2009-03-31 | N5: 2009-06-30 | O5: 2009-09-30 | P5: 2009-12-31 | Q5: 2010-03-31 | R5: 2010-06-30 | S5: 2010-09-30 | T5: 2010-12-31 | U5: 2011-03-31 | V5: 2011-06-30 | W5: 2011-09-30 | X5: 2011-12-30 | Y5: 2012-03-30 | Z5: 2012-06-29 | AA5: 2012-09-28 | AB5: 2012-12-31 | AC5: 2013-03-28 | AD5: 2013-06-28 | AE5: 2013-09-30 | AF5: 2013-12-31 | AG5: 2014-03-31 | AH5: 2014-06-30 | AI5: 2014-09-30 | AJ5: 2014-12-31 | AK5: 2015-03-31 | AL5: 2015-06-30 | AM5: 2015-09-30 | AN5: 2015-12-31 | AO5: 2016-03-31 | AP5: 2016-06-30 | AQ5: 2016-09-30 | AR5: 2016-12-30 | AS5: 2017-03-31 | AT5: 2017-06-30 | AU5: 2017-09-29 | AV5: 2017-12-29 | AW5: 2018-03-29 | AX5: 2018-06-29 | AY5: 2018-09-28 | AZ5: 2018-12-31 | BA5: 2019-03-29 | BB5: 2019-06-28 | BC5: 2019-09-30 | BD5: 2019-12-31 | BE5: 2020-03-31 | BF5: 2020-06-30 | BG5: 2020-09-30
A6: Mortgage Asset Balance | B6: 981243 | C6: 964230 | D6: 951263 | E6: 932587 | F6: 912238 | G6: 892257 | H6: 851400 | I6: 717556 | J6: 659619 | K6: 641940 | L6: 629914 | M6: 620160 | N6: 615424 | O6: 609872 | P6: 605141 | Q6: 601403 | R6: 596913 | S6: 589572 | T6: 585211 | U6: 581269 | V6: 574327 | W6: 570611 | X6: 566872 | Y6: 563025 | Z6: 559134 | AA6: 554442 | AB6: 550146 | AC6: 547726 | AD6: 544790 | AE6: 540571 | AF6: 534843 | AG6: 531045 | AH6: 525404 | AI6: 518754.6733 | AJ6: 512273.0743 | AK6: 506081.8462 | AL6: 497156.0501 | AM6: 490572.482 | AN6: 480195.0343 | AO6: 470577.86 | AP6: 464153.3762 | AQ6: 457180.8531 | AR6: 448600 | AS6: 441215 | AT6: 435138.172 | AU6: 427219.6538 | AV6: 418612.8626 | AW6: 412274.7367 | AX6: 405484.5021 | AY6: 397365.4847 | AZ6: 388322.9383 | BA6: 380212.9067 | BB6: 372270.2847 | BC6: 364348.7784 | BD6: 358465.2288 | BE6: 350940.9883 | BF6: 346250.7388 | BG6: 0
A7: Total Notes | B7: =SUM(B8:B13) -> 981243 | C7: =SUM(C8:C13) -> 964230 | D7: =SUM(D8:D13) -> 951263 | E7: =SUM(E8:E13) -> 932587 | F7: =SUM(F8:F13) -> 912238 | G7: =SUM(G8:G13)+1 -> 892257 | H7: =SUM(H8:H13)+1 -> 851400 | I7: =SUM(I8:I13)+1 -> 717556 | J7: =SUM(J8:J13) -> 659619 | K7: =SUM(K8:K13)+1 -> 641940 | L7: =SUM(L8:L13) -> 629914 | M7: =SUM(M8:M13)+1 -> 620160 | N7: =SUM(N8:N13)+2 -> 615424 | O7: =SUM(O8:O13) -> 609872 | P7: =SUM(P8:P13)+1 -> 605141 | Q7: =SUM(Q8:Q13)+2 -> 601403 | R7: =SUM(R8:R13)+2 -> 596913 | S7: =SUM(S8:S13)+1 -> 589572 | T7: =SUM(T8:T13)+1 -> 585211 | U7: =SUM(U8:U13)+2 -> 581269 | V7: =SUM(V8:V13)+1 -> 574327 | W7: =SUM(W8:W13)+1 -> 570611 | X7: =SUM(X8:X13)+2 -> 566872 | Y7: =SUM(Y8:Y13)+1 -> 563025 | Z7: =SUM(Z8:Z13) -> 559134 | AA7: =SUM(AA8:AA13)+1 -> 554442 | AB7: =SUM(AB8:AB13)+1 -> 550146 | AC7: =SUM(AC8:AC13) -> 547726 | AD7: =SUM(AD8:AD13)+1 -> 544790 | AE7: =SUM(AE8:AE13)+1 -> 540571 | AF7: =SUM(AF8:AF13) -> 534843 | AG7: =SUM(AG8:AG13)+1 -> 531045 | AH7: =SUM(AH8:AH13)+1 -> 525404 | AI7: =SUM(AI8:AI13)+2 -> 518755 | AJ7: =SUM(AJ8:AJ13)+1 -> 512273 | AK7: =SUM(AK8:AK13)+1 -> 506082 | AL7: =SUM(AL8:AL13)+1 -> 497156 | AM7: =SUM(AM8:AM13)+2 -> 490572 | AN7: =SUM(AN8:AN13)+1 -> 480195 | AO7: =SUM(AO8:AO13)+3 -> 470578 | AP7: =SUM(AP8:AP13) -> 464153 | AQ7: =SUM(AQ8:AQ13)+1 -> 457181 | AR7: =SUM(AR8:AR13)+1 -> 448600 | AS7: =SUM(AS8:AS13) -> 441215 | AT7: =SUM(AT8:AT13)+1 -> 435138 | AU7: =SUM(AU8:AU13)+1 -> 427220 | AV7: =SUM(AV8:AV13)+1 -> 418613 | AW7: =SUM(AW8:AW13) -> 412275 | AX7: =SUM(AX8:AX13)+2 -> 405485 | AY7: =SUM(AY8:AY13)+1 -> 397365 | AZ7: =SUM(AZ8:AZ13)+1 -> 388323 | BA7: =SUM(BA8:BA13)+1 -> 380213 | BB7: =SUM(BB8:BB13) -> 372270 | BC7: =SUM(BC8:BC13)+1 -> 364349 | BD7: =SUM(BD8:BD13)-1 -> 358465 | BE7: =SUM(BE8:BE13)+1 -> 350941 | BF7: =SUM(BF8:BF13)+1 -> 346251 | BG7: =SUM(BG8:BG13) -> 0
A8: Class A1 Notes | B8: 554983 | C8: 543858 | D8: 535379 | E8: 523166 | F8: 509859 | G8: 496793 | H8: 470075 | I8: 382551 | J8: 344664 | K8: 333103 | L8: 325239 | M8: 318860 | N8: 315763 | O8: 312133 | P8: 309039 | Q8: 306594 | R8: 303658 | S8: 298858 | T8: 296006 | U8: 293428 | V8: 288889 | W8: 286458 | X8: 284013 | Y8: 281498 | Z8: 278954 | AA8: 275885 | AB8: 273076 | AC8: 271494 | AD8: 269573 | AE8: 266814 | AF8: 263069 | AG8: 260585 | AH8: 256896 | AI8: 252548 | AJ8: 248310 | AK8: 244261 | AL8: 238424 | AM8: 235466 | AN8: 230485 | AO8: 225869 | AP8: 222786 | AQ8: 219439 | AR8: 215320 | AS8: 211776 | AT8: 208859 | AU8: 205058 | AV8: 200927 | AW8: 197885 | AX8: 194625 | AY8: 190728 | AZ8: 186388 | BA8: 182495 | BB8: 178683 | BC8: 174881 | BD8: 172057 | BE8: 168445 | BF8: 166194 | BG8: 0
A9: Class A2a Notes | B9: 146259 | C9: 143327 | D9: 141092 | E9: 137874 | F9: 134367 | G9: 130923 | H9: 123882 | I9: 100816 | J9: 90832 | K9: 87785 | L9: 85713 | M9: 84032 | N9: 83215 | O9: 82259 | P9: 81443 | Q9: 80799 | R9: 80025 | S9: 78760 | T9: 78009 | U9: 77329 | V9: 76133 | W9: 75493 | X9: 74848 | Y9: 74185 | Z9: 73515 | AA9: 72706 | AB9: 71966 | AC9: 71549 | AD9: 71043 | AE9: 70316 | AF9: 69329 | AG9: 68674 | AH9: 67702 | AI9: 66556 | AJ9: 65439 | AK9: 64372 | AL9: 62834 | AM9: 62054 | AN9: 60742 | AO9: 59525 | AP9: 58713 | AQ9: 57831 | AR9: 56745 | AS9: 55811 | AT9: 55042 | AU9: 54041 | AV9: 52952 | AW9: 52150 | AX9: 51291 | AY9: 50264 | AZ9: 49121 | BA9: 48095 | BB9: 47090 | BC9: 46088 | BD9: 45344 | BE9: 44392 | BF9: 43799 | BG9: 0
A10: Class A2b Notes | B10: 147448 | C10: 144493 | D10: 142240 | E10: 138995 | F10: 135460 | G10: 131988 | H10: 124890 | I10: 101636 | J10: 91571 | K10: 88499 | L10: 86410 | M10: 84715 | N10: 83892 | O10: 82928 | P10: 82106 | Q10: 81456 | R10: 80676 | S10: 79401 | T10: 78643 | U10: 77958 | V10: 76752 | W10: 76107 | X10: 75457 | Y10: 74789 | Z10: 74113 | AA10: 73298 | AB10: 72551 | AC10: 72131 | AD10: 71621 | AE10: 70888 | AF10: 69893 | AG10: 69233 | AH10: 68253 | AI10: 67097 | AJ10: 65971 | AK10: 64896 | AL10: 63345 | AM10: 62559 | AN10: 61236 | AO10: 60009 | AP10: 59190 | AQ10: 58301 | AR10: 57207 | AS10: 56265 | AT10: 55490 | AU10: 54480 | AV10: 53383 | AW10: 52575 | AX10: 51709 | AY10: 50673 | AZ10: 49520 | BA10: 48486 | BB10: 47473 | BC10: 46463 | BD10: 45713 | BE10: 44753 | BF10: 44155 | BG10: 0
A11: Class B1a Notes | B11: 16000 | C11: 16000 | D11: 16000 | E11: 16000 | F11: 16000 | G11: 16000 | H11: 16000 | I11: 16000 | J11: 16000 | K11: 16000 | L11: 16000 | M11: 16000 | N11: 16000 | O11: 16000 | P11: 16000 | Q11: 16000 | R11: 16000 | S11: 16000 | T11: 16000 | U11: 16000 | V11: 16000 | W11: 16000 | X11: 16000 | Y11: 16000 | Z11: 16000 | AA11: 16000 | AB11: 16000 | AC11: 16000 | AD11: 16000 | AE11: 16000 | AF11: 16000 | AG11: 16000 | AH11: 16000 | AI11: 16000 | AJ11: 16000 | AK11: 16000 | AL11: 16000 | AM11: 15751 | AN11: 15418 | AO11: 15109 | AP11: 14903 | AQ11: 14679 | AR11: 14404 | AS11: 14167 | AT11: 13971 | AU11: 13717 | AV11: 13441 | AW11: 13237 | AX11: 13019 | AY11: 12759 | AZ11: 12468 | BA11: 12208 | BB11: 11953 | BC11: 11698 | BD11: 11510 | BE11: 11268 | BF11: 11117 | BG11: 0
A12: Class B1b Notes | B12: 56527 | C12: 56527 | D12: 56527 | E12: 56527 | F12: 56527 | G12: 56527 | H12: 56527 | I12: 56527 | J12: 56527 | K12: 56527 | L12: 56527 | M12: 56527 | N12: 56527 | O12: 56527 | P12: 56527 | Q12: 56527 | R12: 56527 | S12: 56527 | T12: 56527 | U12: 56527 | V12: 56527 | W12: 56527 | X12: 56527 | Y12: 56527 | Z12: 56527 | AA12: 56527 | AB12: 56527 | AC12: 56527 | AD12: 56527 | AE12: 56527 | AF12: 56527 | AG12: 56527 | AH12: 56527 | AI12: 56527 | AJ12: 56527 | AK12: 56527 | AL12: 56527 | AM12: 55648 | AN12: 54471 | AO12: 53380 | AP12: 52651 | AQ12: 51860 | AR12: 50887 | AS12: 50049 | AT12: 49360 | AU12: 48462 | AV12: 47485 | AW12: 46767 | AX12: 45996 | AY12: 45075 | AZ12: 44050 | BA12: 43130 | BB12: 42229 | BC12: 41330 | BD12: 40663 | BE12: 39809 | BF12: 39277 | BG12: 0
A13: Class C1b Notes | B13: 60026 | C13: 60025 | D13: 60025 | E13: 60025 | F13: 60025 | G13: 60025 | H13: 60025 | I13: 60025 | J13: 60025 | K13: 60025 | L13: 60025 | M13: 60025 | N13: 60025 | O13: 60025 | P13: 60025 | Q13: 60025 | R13: 60025 | S13: 60025 | T13: 60025 | U13: 60025 | V13: 60025 | W13: 60025 | X13: 60025 | Y13: 60025 | Z13: 60025 | AA13: 60025 | AB13: 60025 | AC13: 60025 | AD13: 60025 | AE13: 60025 | AF13: 60025 | AG13: 60025 | AH13: 60025 | AI13: 60025 | AJ13: 60025 | AK13: 60025 | AL13: 60025 | AM13: 59092 | AN13: 57842 | AO13: 56683 | AP13: 55910 | AQ13: 55070 | AR13: 54036 | AS13: 53147 | AT13: 52415 | AU13: 51461 | AV13: 50424 | AW13: 49661 | AX13: 48843 | AY13: 47865 | AZ13: 46775 | BA13: 45798 | BB13: 44842 | BC13: 43888 | BD13: 43179 | BE13: 42273 | BF13: 41708 | BG13: 0
A14: Class B and C Notes as a % of the Total Notes | B14: =SUM(B11:B13)/B7 -> 0.1350868235 | C14: 0.137469276 | D14: 0.139343168 | E14: 0.1421336562 | F14: 0.145304186 | G14: 0.1485580948 | H14: 0.1556871036 | I14: 0.1847270457 | J14: 0.200952368 | K14: 0.2064865875 | L14: 0.2104287252 | M14: 0.2137383901 | N14: 0.2153832155 | O14: 0.2173439673 | P14: 0.2190431651 | Q14: 0.2204046205 | R14: 0.2220625116 | S14: 0.224827502 | T14: 0.2265029195 | U14: 0.2280389974 | V14: 0.2307953483 | W14: 0.2322983609 | X14: =SUM(X11:X13)/X7 -> 0.2338305649 | Y14: 0.235428267 | Z14: 0.2370666066 | AA14: 0.2390727975 | AB14: 0.2409396778 | AC14: 0.2420042138 | AD14: =SUM(AD11:AD13)/AD7 -> 0.2433084308 | AE14: 0.2452073826 | AF14: 0.2478334764 | AG14: 0.2496059656 | AH14: 0.25228586 | AI14: 0.2555194649 | AJ14: =SUM(AJ11:AJ13)/AJ7 -> 0.2587526573 | AK14: 0.2619180291 | AL14: =SUM(AL11:AL13)/AL7 -> 0.2666205376 | AM14: 0.2659976517 | AN14: =SUM(AN11:AN13)/AN7 -> 0.2659981882 | AO14: 0.2659962854 | AP14: =SUM(AP11:AP13)/AP7 -> 0.2659984962 | AQ14: 0.2659974933 | AR14: =SUM(AR11:AR13)/AR7 -> 0.2659986625 | AS14: 0.2659995694 | AT14: =SUM(AT11:AT13)/AT7 -> 0.2659983729 | AU14: 0.2659987828 | AV14: =SUM(AV11:AV13)/AV7 -> 0.2659974726 | AW14: 0.2659996362 | AX14: =SUM(AX11:AX13)/AX7 -> 0.2659975092 | AY14: 0.2659997735 | AZ14: =SUM(AZ11:AZ13)/AZ7 -> 0.265997636 | BA14: 0.2659982694 | BB14: =SUM(BB11:BB13)/BB7 -> 0.2660004835 | BC14: 0.265997711 | BD14: =SUM(BD11:BD13)/BD7 -> 0.2660008648 | BE14: 0.2659991281 | BF14: =SUM(BF11:BF13)/BF7 -> 0.2659977877 | BG14: 0
A15: Overall Lifetime Redemption Rate | B15: 0.0865 | C15: 0.0891 | D15: 0.0826 | E15: 0.0841 | F15: 0.0876 | G15: 0.0897 | H15: 0.1028 | I15: 0.1657 | J15: 0.1813 | K15: 0.1748 | L15: 0.1664 | M15: 0.1583 | N15: 0.1494 | O15: 0.1419 | P15: 0.1351 | Q15: 0.1285 | R15: 0.1232 | S15: 0.1193 | T15: 0.1148 | U15: 0.1107 | V15: 0.1079 | W15: 0.1043 | X15: 0.1011 | Y15: 0.0982 | Z15: 0.0955 | AA15: 0.0932 | AB15: 0.091 | AC15: 0.0885 | AD15: 0.0863 | AE15: 0.0845 | AF15: 0.0832 | AG15: 0.0816 | AH15: 0.0805 | AI15: 0.0796 | AJ15: 0.0788 | AK15: 0.0779 | AL15: 0.0777 | AM15: 0.0771 | AN15: 0.0773 | AO15: 0.0773 | AP15: 0.0767 | AQ15: 0.0763 | AR15: 0.0763 | AS15: 0.0762 | AT15: 0.0757 | AU15: 0.0757 | AV15: 0.0758 | AW15: 0.0754 | AX15: 0.0752 | AY15: 0.0753 | AZ15: 0.0755 | BA15: 0.0756 | BB15: 0.0757 | BC15: 0.0759 | BD15: 0.0756 | BE15: 0.0757 | BF15: 0.0753 | BG15: 1
A16: Quarterly Redemption Rate | B16: 0.0248 | C16: 0.0238 | D16: 0.0177 | E16: 0.0229 | F16: 0.0266 | G16: 0.0262 | H16: 0.048 | I16: 0.1601 | J16: 0.0845 | K16: 0.0299 | L16: 0.0198 | M16: 0.0167 | N16: 0.0091 | O16: 0.0103 | P16: 0.0092 | Q16: 0.0065 | R16: 0.0083 | S16: 0.0128 | T16: 0.0076 | U16: 0.0072 | V16: 0.0123 | W16: 0.0067 | X16: 0.0066 | Y16: 0.007 | Z16: 0.0075 | AA16: 0.0086 | AB16: 0.0078 | AC16: 0.0045 | AD16: 0.0054 | AE16: 0.0081 | AF16: 0.0111 | AG16: 0.0076 | AH16: 0.011 | AI16: 0.0128 | AJ16: 0.0127 | AK16: 0.0122 | AL16: 0.0178 | AM16: 0.0139 | AN16: 0.0214 | AO16: 0.0203 | AP16: 0.0139 | AQ16: 0.0153 | AR16: 0.0196 | AS16: 0.0177 | AT16: 0.0139 | AU16: 0.0194 | AV16: 0.0204 | AW16: 0.0151 | AX16: 0.0168 | AY16: 0.0201 | AZ16: 0.0229 | BA16: 0.0209 | BB16: 0.0209 | BC16: 0.0213 | BD16: 0.0161 | BE16: 0.021 | BF16: 0.0134 | BG16: 1
A17: Further Advances released in the quarter | B17: 3639 | C17: 5697 | D17: 3873 | E17: 2943 | F17: 4289 | G17: 3710 | H17: 1805 | I17: 2056 | J17: 2428 | K17: 1898 | L17: 496 | M17: 643 | N17: 473 | O17: 667 | P17: 781 | Q17: 100 | R17: 471 | S17: 185 | T17: 104 | U17: 254 | V17: 143 | W17: 97 | X17: 0 | Y17: 20 | Z17: 278 | AA17: 86 | AB17: 0 | AC17: 58 | AD17: 8 | AE17: 84 | AF17: 265 | AG17: 292 | AH17: 197 | AI17: 70 | AJ17: 116 | AK17: 37 | AL17: 100 | AM17: 333 | AN17: 126 | AO17: 112 | AP17: 128 | AQ17: 127 | AR17: 358 | AS17: 568 | AT17: 65 | AU17: 515 | AV17: 111 | AW17: 0 | AX17: 118 | AY17: 45 | AZ17: 65 | BA17: 0 | BB17: 0 | BC17: 0 | BD17: 0 | BE17: 0 | BF17: 0 | BG17: 0
A18: First Loss Fund Balance | B18: 19001 | C18: 19001 | D18: 19001 | E18: 19001 | F18: 19001 | G18: 19001 | H18: 19001 | I18: 19001 | J18: 19001 | K18: 19001 | L18: 19001 | M18: 19001 | N18: 19001 | O18: 19001 | P18: 19001 | Q18: 19001 | R18: 19001 | S18: 19001 | T18: 19001 | U18: 19001 | V18: 19001 | W18: 19001 | X18: 19001 | Y18: 19001 | Z18: 19001 | AA18: 19001 | AB18: 19001 | AC18: 19001 | AD18: 19001 | AE18: 19001 | AF18: 19001 | AG18: 19001 | AH18: 19001 | AI18: 19001 | AJ18: 19001 | AK18: 19001 | AL18: 19001 | AM18: 19001 | AN18: 19001 | AO18: 19001 | AP18: 19001 | AQ18: 19001 | AR18: 19001 | AS18: 19001 | AT18: 19001 | AU18: 19001 | AV18: 19001 | AW18: 19001 | AX18: 19001 | AY18: 19001 | AZ18: 19001 | BA18: 19001 | BB18: 19001 | BC18: 19001 | BD18: 19001 | BE18: 19001 | BF18: 19001 | BG18: 0
A19: First Loss Fund as a % of the Mortgages | B19: =+B18/B6 -> 0.01936421457 | C19: 0.0197058793 | D19: =+D18/D6 -> 0.01997449706 | E19: 0.02037450661 | F19: 0.02082899419 | G19: 0.02129543394 | H19: 0.02231735964 | I19: 0.02648016322 | J19: 0.02880602287 | K19: 0.0295993395 | L19: 0.03016443515 | M19: 0.03063886739 | N19: 0.03087464902 | O19: 0.03115571792 | P19: 0.03139929372 | Q19: 0.03159445497 | R19: 0.03183210954 | S19: 0.03222846404 | T19: 0.03246863097 | U19: 0.03268882394 | V19: 0.03308393999 | W19: 0.03329939311 | X19: =+X18/X6 -> 0.03351903075 | Y19: 0.03374805737 | Z19: 0.03398290928 | AA19: 0.03427049177 | AB19: 0.03453810443 | AC19: 0.03469070302 | AD19: =+AD18/AD6 -> 0.03487765928 | AE19: 0.0351498693 | AF19: 0.03552631333 | AG19: 0.03578039526 | AH19: 0.03616455147 | AI19: 0.03662810376 | AJ19: =+AJ18/AJ6 -> 0.03709154541 | AK19: 0.0375453104 | AL19: =+AL18/AL6 -> 0.03821938805 | AM19: 0.03873229889 | AN19: =+AN18/AN6 -> 0.03956933879 | AO19: 0.04037801523 | AP19: =+AP18/AP6 -> 0.04093689925 | AQ19: 0.04156123309 | AR19: =+AR18/AR6 -> 0.04235621935 | AS19: 0.04306517231 | AT19: =+AT18/AT6 -> 0.04366658965 | AU19: 0.04447595009 | AV19: =+AV18/AV6 -> 0.04539038739 | AW19: 0.04608819874 | AX19: =+AX18/AX6 -> 0.04685999071 | AY19: 0.04781743944 | AZ19: =+AZ18/AZ6 -> 0.04893092354 | BA19: 0.04997463176 | BB19: =+BB18/BB6 -> 0.05104087213 | BC19: 0.05215057968 | BD19: =+BD18/BD6 -> 0.05300653585 | BE19: 0.0541430059 | BF19: =+BF18/BF6 -> 0.0548764172 | BG19: 0
A20: Opening PDL Balance | B20: 0 | C20: 0 | D20: 0 | E20: 0 | F20: 0 | G20: 0 | H20: 0 | I20: 0 | J20: 0 | K20: 0 | L20: 0 | M20: 0 | N20: 0 | O20: 0 | P20: 0 | Q20: 0 | R20: 0 | S20: 0 | T20: 0 | U20: 0 | V20: 0 | W20: 0 | X20: 0 | Y20: 0 | Z20: 0 | AA20: 0 | AB20: 0 | AC20: 0 | AD20: 0 | AE20: 0 | AF20: 0 | AG20: 0 | AH20: 0 | AI20: 0 | AJ20: 0 | AK20: 0 | AL20: 0 | AM20: 0 | AN20: 0 | AO20: 0 | AP20: 0 | AQ20: 0 | AR20: 0 | AS20: 0 | AT20: 0 | AU20: 0 | AV20: 0 | AW20: 0 | AX20: 0 | AY20: 0 | AZ20: 0 | BA20: 0 | BB20: 0 | BC20: 0 | BD20: 0 | BE20: 0 | BF20: 0 | BG20: 0
A21: Quarterly Losses | B21: 0 | C21: 0 | D21: =SUM(D91+D123) -> 0 | E21: 0 | F21: 18 | G21: 4 | H21: 0 | I21: 16 | J21: 46 | K21: 116 | L21: =SUM(L91+L123) -> 9 | M21: 346 | N21: 520 | O21: 312 | P21: 461 | Q21: 561 | R21: =SUM(R91+R123) -> 26 | S21: 219 | T21: 115 | U21: -13 | V21: 318 | W21: 2 | X21: =SUM(X91+X123) -> 199 | Y21: 155 | Z21: 117 | AA21: 137 | AB21: 70 | AC21: 61 | AD21: =SUM(AD91+AD123) -> 207 | AE21: 333 | AF21: 322 | AG21: 117 | AH21: 59 | AI21: 3 | AJ21: =SUM(AJ91+AJ123) -> 385 | AK21: 81 | AL21: =SUM(AL91+AL123) -> 125 | AM21: 53 | AN21: =SUM(AN91+AN123) -> 97 | AO21: 17 | AP21: =SUM(AP91+AP123) -> 196 | AQ21: 242 | AR21: =SUM(AR91+AR123) -> 266 | AS21: 138 | AT21: =SUM(AT91+AT123) -> 68 | AU21: 141 | AV21: =SUM(AV91+AV123) -> -14 | AW21: 347 | AX21: =SUM(AX91+AX123) -> 384 | AY21: 91 | AZ21: =SUM(AZ91+AZ123) -> 69 | BA21: -38 | BB21: =SUM(BB91+BB123) -> 351 | BC21: 9 | BD21: =SUM(BD91+BD123) -> 112 | BE21: 12 | BF21: =SUM(BF91+BF123) -> -1 | BG21: 74
A22: Quarterly Loss Rate (annualised) | B22: 0 | C22: =1-(1-C21/C6)^4 -> 0 | D22: 0 | E22: 0 | F22: 7.89244353e-05 | G22: 1.793193263e-05 | H22: 0 | I22: 8.918866184e-05 | J22: 0.0002789197301 | K22: 0.0007226130891 | L22: 5.714943385e-05 | M22: 0.002229815189 | N22: 0.003375502505 | O22: 0.002044761267 | P22: 0.003043743383 | Q22: 0.003726057376 | R22: 0.0001742183622 | S22: 0.001484995942 | T22: 0.0007858096065 | U22: 0 | V22: 0.002212927385 | W22: 1.401998549e-05 | X22: =1-(1-X21/X6)^4 -> 0.001403457827 | Y22: 0.001100739788 | Z22: 0.0008367459777 | AA22: 0.000988014835 | AB22: 0.0005088586742 | AC22: 0.0004454038 | AD22: =1-(1-AD21/AD6)^4 -> 0.001518985674 | AE22: 0.002461785236 | AF22: 0.002406009454 | AG22: 0.0008809900439 | AH22: 0.0004491025015 | AI22: 2.313212106e-05 | AJ22: =1-(1-AJ21/AJ6)^4 -> 0.003002821856 | AK22: 0.0006400589646 | AL22: =1-(1-AL21/AL6)^4 -> 0.001005341198 | AM22: 0.0004320781423 | AN22: =1-(1-AN21/AN6)^4 -> 0.0008077602294 | AO22: 0.0001444953557 | AP22: =1-(1-AP21/AP6)^4 -> 0.001688027246 | AQ22: 0.002115643462 | AR22: =1-(1-AR21/AR6)^4 -> 0.002369714705 | AS22: 0.0012505039 | AT22: =1-(1-AT21/AT6)^4 -> 0.0006249422943 | AU22: 0.001319510565 | AV22: 0 | AW22: 0.003362438925 | AX22: =1-(1-AX21/AX6)^4 -> 0.003782683299 | AY22: 0.0009157186383 | AZ22: =1-(1-AZ21/AZ6)^4 -> 0.0007105592255 | BA22: 0 | BB22: =1-(1-BB21/BB6)^4 -> 0.003766122721 | BC22: 9.880276337e-05 | BD22: =1-(1-BD21/BD6)^4 -> 0.001249186939 | BE22: 0.0001367681169 | BF22: -1.155237197e-05 | BG22: 0
A23: PDL Replenishment made during the quarter (-ve = recoveries) | B23: 0 | C23: 0 | D23: 0 | E23: 0 | F23: 18 | G23: 4 | H23: 0 | I23: 16 | J23: 46 | K23: 116 | L23: 9 | M23: 346 | N23: 520 | O23: 312 | P23: 461 | Q23: 561 | R23: 26 | S23: 219 | T23: 115 | U23: -13 | V23: 318 | W23: 2 | X23: 199 | Y23: 155 | Z23: 117 | AA23: 137 | AB23: 70 | AC23: 61 | AD23: 207 | AE23: 333 | AF23: 322 | AG23: 117 | AH23: 59 | AI23: 3 | AJ23: 385 | AK23: 81 | AL23: 125 | AM23: 53 | AN23: 97 | AO23: 17 | AP23: 196 | AQ23: 242 | AR23: 266 | AS23: 138 | AT23: 68 | AU23: 141 | AV23: -14 | AW23: 347 | AX23: 384 | AY23: 91 | AZ23: 69 | BA23: -38 | BB23: 351 | BC23: 9 | BD23: 112 | BE23: 12 | BF23: -1 | BG23: 74
A24: Outstanding PDL at end of the quarter | B24: =B20+B21-B23 -> 0 | C24: 0 | D24: 0 | E24: 0 | F24: 0 | G24: 0 | H24: 0 | I24: 0 | J24: 0 | K24: 0 | L24: 0 | M24: 0 | N24: 0 | O24: 0 | P24: 0 | Q24: 0 | R24: 0 | S24: 0 | T24: 0 | U24: 0 | V24: 0 | W24: 0 | X24: =X20+X21-X23 -> 0 | Y24: 0 | Z24: 0 | AA24: 0 | AB24: 0 | AC24: 0 | AD24: =AD20+AD21-AD23 -> 0 | AE24: 0 | AF24: 0 | AG24: 0 | AH24: 0 | AI24: 0 | AJ24: =AJ20+AJ21-AJ23 -> 0 | AK24: 0 | AL24: =AL20+AL21-AL23 -> 0 | AM24: 0 | AN24: =AN20+AN21-AN23 -> 0 | AO24: 0 | AP24: =AP20+AP21-AP23 -> 0 | AQ24: 0 | AR24: =AR20+AR21-AR23 -> 0 | AS24: 0 | AT24: =AT20+AT21-AT23 -> 0 | AU24: 0 | AV24: =AV20+AV21-AV23 -> 0 | AW24: 0 | AX24: =AX20+AX21-AX23 -> 0 | AY24: 0 | AZ24: =AZ20+AZ21-AZ23 -> 0 | BA24: 0 | BB24: =BB20+BB21-BB23 -> 0 | BC24: 0 | BD24: =BD20+BD21-BD23 -> 0 | BE24: 0 | BF24: =BF20+BF21-BF23 -> 0 | BG24: 0
A25: Spread Trap repayment in the quarter | B25: N/A | C25: N/A | D25: N/A | E25: N/A | F25: N/A | G25: N/A | H25: N/A | I25: N/A | J25: N/A | K25: N/A | L25: N/A | M25: N/A | N25: N/A | O25: N/A | P25: N/A | Q25: N/A | R25: N/A | S25: N/A | T25: N/A | U25: N/A | V25: N/A | W25: N/A | X25: N/A | Y25: N/A | Z25: N/A | AA25: N/A | AB25: N/A | AC25: N/A | AD25: N/A | AE25: N/A | AF25: N/A | AG25: N/A | AH25: N/A | AI25: N/A | AJ25: N/A | AK25: N/A | AL25: N/A | AM25: N/A | AN25: N/A | AO25: N/A | AP25: N/A | AQ25: N/A | AR25: N/A | AS25: N/A | AT25: N/A | AU25: N/A | AV25: N/A | AW25: N/A | AX25: N/A | AY25: N/A | AZ25: N/A | BA25: N/A | BB25: N/A | BC25: N/A | BD25: N/A | BE25: N/A | BF25: N/A | BG25: N/A
A26: Spread % (WA Funding Rate less WA Interest Rate) | B26: 0.0043 | C26: 0.0035 | D26: -0.0002 | E26: -0.0037 | F26: -0.0037 | G26: -0.0069 | H26: -0.0085 | I26: 0.0008 | J26: -0.0031 | K26: -0.0018 | L26: -0.0075 | M26: 0.0201 | N26: 0.0214 | O26: 0.0227 | P26: 0.0251 | Q26: 0.024 | R26: 0.0199 | S26: 0.0194 | T26: 0.0173 | U26: 0.0165 | V26: 0.0151 | W26: 0.0152 | X26: 0.0151 | Y26: 0.0144 | Z26: 0.0147 | AA26: 0.0141 | AB26: 0.0148 | AC26: 0.0149 | AD26: 0.0147 | AE26: 0.0147 | AF26: 0.0146 | AG26: 0.0146 | AH26: 0.0146 | AI26: 0.0144 | AJ26: 0.0144 | AK26: 0.0144 | AL26: 0.0143 | AM26: 0.0143 | AN26: 0.0143 | AO26: 0.0145 | AP26: 0.0146 | AQ26: 0.014 | AR26: 0.0144 | AS26: 0.0148 | AT26: 0.0147 | AU26: 0.0151 | AV26: 0.0156 | AW26: 0.0154 | AX26: 0.0139 | AY26: 0.0148 | AZ26: 0.0155 | BA26: 0.01466653003 | BB26: 0.015 | BC26: 0.01496462706 | BD26: 0.01488592802 | BE26: 0.0145 | BF26: 0.0121 | BG26: 0
A27: Total Income as a % of the Mortgages | B27: 0.0168 | C27: 0.0161 | D27: 0.0169 | E27: 0.0179 | F27: 0.0179 | G27: 0.019 | H27: 0.0196 | I27: 0.018 | J27: 0.0179 | K27: 0.018 | L27: 0.0191 | M27: 0.0128 | N27: 0.0109 | O27: 0.0093 | P27: 0.0082 | Q27: 0.0088 | R27: 0.0074 | S27: 0.0075 | T27: 0.0071 | U27: 0.0067 | V27: 0.0074 | W27: 0.0072 | X27: 0.0078 | Y27: 0.008 | Z27: 0.0076 | AA27: 0.0073 | AB27: 0.0068 | AC27: 0.0064 | AD27: 0.0065 | AE27: 0.0064 | AF27: 0.0066 | AG27: 0.0061 | AH27: 0.0064 | AI27: 0.0066 | AJ27: 0.0066 | AK27: 0.0063 | AL27: 0.0065 | AM27: 0.0064 | AN27: 0.006 | AO27: 0.0068 | AP27: 0.0066 | AQ27: 0.0059 | AR27: 0.0065 | AS27: 0.0062 | AT27: 0.0057 | AU27: 0.0055 | AV27: 0.0056 | AW27: 0.0071 | AX27: 0.0075 | AY27: 0.0069 | AZ27: 0.0071 | BA27: 0.006739235121 | BB27: 0.0076 | BC27: 0.006675262578 | BD27: 0.00701525186 | BE27: 0.0068 | BF27: 0.0059 | BG27: 0
A28: Quarterly surplus income to the Issuer | B28: 1003 | C28: 3385 | D28: 2870 | E28: 3035 | F28: 2653 | G28: 2753 | H28: 2384 | I28: 2270 | J28: 1241 | K28: 1159 | L28: 1378 | M28: 1986 | N28: 1297 | O28: 1182 | P28: 899 | Q28: 1102 | R28: 1699 | S28: 1583 | T28: 1897 | U28: 1706 | V28: 1670 | W28: 1777 | X28: 1713 | Y28: 1764 | Z28: 1587 | AA28: 1706 | AB28: 1860 | AC28: 1681 | AD28: 1642 | AE28: 1431 | AF28: 1510 | AG28: 1521 | AH28: 1663 | AI28: 1771 | AJ28: 1327 | AK28: 1546 | AL28: 1550 | AM28: 1479 | AN28: 1285 | AO28: 1655 | AP28: 1379 | AQ28: 1036 | AR28: 1416 | AS28: 1494 | AT28: 1338 | AU28: 1156 | AV28: 1241 | AW28: 1375 | AX28: 1204 | AY28: 1245 | AZ28: 1266 | BA28: 1114 | BB28: 1129 | BC28: 1096 | BD28: 1111 | BE28: 1164 | BF28: 898 | BG28: =19001+1007 -> 20008
A29: Surplus Income as a % of the Mortgages | B29: =B28/1000040 -> 0.001002959882 | C29: =+C28/B6 -> 0.003449706138 | D29: 0.00297646827 | E29: 0.003190495163 | F29: 0.002844774804 | G29: 0.003017852797 | H29: 0.002671875928 | I29: 0.002666196852 | J29: 0.001729481741 | K29: 0.001757074917 | L29: 0.002146618064 | M29: 0.003152811336 | N29: 0.002091395769 | O29: 0.00192062708 | P29: 0.001474079807 | Q29: 0.00182106319 | R29: 0.002825060733 | S29: 0.002651977759 | T29: 0.003217588352 | U29: 0.002915187855 | V29: 0.002873024366 | W29: 0.003094056174 | X29: 0.003002045176 | Y29: 0.003111813602 | Z29: 0.002818702544 | AA29: 0.003051146952 | AB29: 0.003354724209 | AC29: 0.003055552526 | AD29: 0.00299784929 | AE29: 0.002626700196 | AF29: 0.002793342595 | AG29: 0.002843825197 | AH29: 0.003131561355 | AI29: 0.003370739469 | AJ29: 0.002558049244 | AK29: 0.003017921647 | AL29: 0.003062745704 | AM29: 0.002974921053 | AN29: 0.002619388668 | AO29: 0.003446516273 | AP29: 0.002930439609 | AQ29: 0.002232020821 | AR29: 0.003097242569 | AS29: 0.003330361123 | AT29: 0.003032535159 | AU29: 0.002656627422 | AV29: 0.002904828907 | AW29: 0.003284657789 | AX29: 0.002920382679 | AY29: 0.003070400949 | AZ29: 0.003185983808 | BA29: 0.00286874632 | BB29: 0.00296938894 | BC29: 0.002944097461 | BD29: 0.00304927604 | BE29: 0.003247176871 | BF29: 0.002558834761 | BG29: 0
A30: Payment Holidays as a percentage of the Mortgages | B30: N/A | C30: N/A | D30: N/A | E30: N/A | F30: N/A | G30: N/A | H30: N/A | I30: N/A | J30: N/A | K30: N/A | L30: N/A | M30: N/A | N30: N/A | O30: N/A | P30: N/A | Q30: N/A | R30: N/A | S30: N/A | T30: N/A | U30: N/A | V30: N/A | W30: N/A | X30: N/A | Y30: N/A | Z30: N/A | AA30: N/A | AB30: N/A | AC30: N/A | AD30: N/A | AE30: N/A | AF30: N/A | AG30: N/A | AH30: N/A | AI30: N/A | AJ30: N/A | AK30: N/A | AL30: N/A | AM30: N/A | AN30: N/A | AO30: N/A | AP30: N/A | AQ30: N/A | AR30: N/A | AS30: N/A | AT30: N/A | AU30: N/A | AV30: N/A | AW30: N/A | AX30: N/A | AY30: N/A | AZ30: N/A | BA30: N/A | BB30: N/A | BC30: N/A | BD30: N/A | BE30: 0.0733 | BF30: 0.16737537 | BG30: 0
A31: Losses as a % of the Mortgages | B31: =+B21/1000040 -> 0 | C31: =+C21/B6 -> 0 | D31: 0 | E31: 0 | F31: 1.930114831e-05 | G31: 4.384820628e-06 | H31: 0 | I31: 1.879257693e-05 | J31: 6.410649482e-05 | K31: 0.0001758590944 | L31: 1.402000187e-05 | M31: 0.0005492813305 | N31: 0.0008384932921 | O31: 0.0005069675541 | P31: 0.0007558963192 | Q31: 0.0009270566694 | R31: 4.323224194e-05 | S31: 0.0003668876369 | T31: 0.000195056753 | U31: -2.221420992e-05 | V31: 0.0005470788912 | W31: 3.482336718e-06 | X31: 0.0003487489726 | Y31: 0.0002734303335 | Z31: 0.0002078060477 | AA31: 0.0002450217658 | AB31: 0.0001262530616 | AC31: 0.0001108796574 | AD31: 0.0003779261894 | AE31: 0.0006112446998 | AF31: 0.0005956664342 | AG31: 0.0002187557844 | AH31: 0.0001111016957 | AI31: 5.709891817e-06 | AJ31: 0.0007421619887 | AK31: 0.0001581187926 | AL31: 0.0002469956213 | AM31: 0.0001066063663 | AN31: 0.0001977281718 | AO31: 3.540228196e-05 | AP31: 0.000416509183 | AQ31: 0.0005213793811 | AR31: 0.0005818266408 | AS31: 0.0003076237182 | AT31: 0.0001541198735 | AU31: 0.0003240350056 | AV31: -3.277002796e-05 | AW31: 0.0008289281839 | AX31: 0.0009314177315 | AY31: 0.0002244228806 | AZ31: =+AZ21/AY6 -> 0.0001736436673 | BA31: 0 | BB31: =+BB21/BA6 -> 0.0009231669779 | BC31: =+BC21/BB6 -> 2.41759828e-05 | BD31: =+BD21/BC6 -> 0.0003073977646 | BE31: =+BE21/BD6 -> 3.347605022e-05 | BF31: =+BF21/BE6 -> -2.849481917e-06 | BG31: 0
A32: Number of Properties in Possession | B32: 0 | C32: 0 | D32: =SUM(D89+D121) -> 0 | E32: 0 | F32: 0 | G32: =SUM(G89+G121) -> 0 | H32: 1 | I32: 1 | J32: =SUM(J89+J121) -> 1 | K32: 1 | L32: 0 | M32: =SUM(M89+M121) -> 0 | N32: 0 | O32: 0 | P32: =SUM(P89+P121) -> 0 | Q32: 1 | R32: 1 | S32: =SUM(S89+S121) -> 0 | T32: 0 | U32: 0 | V32: =SUM(V89+V121) -> 0 | W32: 0 | X32: 0 | Y32: =SUM(Y89+Y121) -> 1 | Z32: 1 | AA32: 1 | AB32: =SUM(AB89+AB121) -> 2 | AC32: 1 | AD32: 1 | AE32: =SUM(AE89+AE121) -> 1 | AF32: 0 | AG32: 0 | AH32: =SUM(AH89+AH121) -> 0 | AI32: 0 | AJ32: 0 | AK32: 0 | AL32: 0 | AM32: 0 | AN32: 0 | AO32: 0 | AP32: 0 | AQ32: 0 | AR32: 0 | AS32: =SUM(AS89+AS121) -> 0 | AT32: 0 | AU32: =SUM(AU89+AU121) -> 0 | AV32: 0 | AW32: =SUM(AW89+AW121) -> 0 | AX32: 0 | AY32: =SUM(AY89+AY121) -> 0 | AZ32: 0 | BA32: =SUM(BA89+BA121) -> 0 | BB32: 0 | BC32: =SUM(BC89+BC121) -> 0 | BD32: 0 | BE32: =SUM(BE89+BE121) -> 0 | BF32: 0 | BG32: =SUM(BG89+BG121) -> 0
A33: Appointment of a Receiver of Rent | B33: 3 | C33: 8 | D33: 15 | E33: 14 | F33: 19 | G33: 15 | H33: 18 | I33: 24 | J33: 78 | K33: 95 | L33: 136 | M33: 149 | N33: 164 | O33: 178 | P33: 183 | Q33: 138 | R33: 133 | S33: 123 | T33: 118 | U33: 122 | V33: 120 | W33: 118 | X33: 121 | Y33: 116 | Z33: 124 | AA33: 115 | AB33: 110 | AC33: 106 | AD33: 108 | AE33: 103 | AF33: 97 | AG33: 97 | AH33: =SUM(AH90+AH122) -> 90 | AI33: 86 | AJ33: 79 | AK33: 72 | AL33: 68 | AM33: 69 | AN33: 67 | AO33: 65 | AP33: 60 | AQ33: 54 | AR33: 42 | AS33: =SUM(AS90+AS122) -> 37 | AT33: 34 | AU33: =SUM(AU90+AU122) -> 32 | AV33: 32 | AW33: =SUM(AW90+AW122) -> 32 | AX33: 29 | AY33: =SUM(AY90+AY122) -> 27 | AZ33: 26 | BA33: =SUM(BA90+BA122) -> 29 | BB33: 28 | BC33: =SUM(BC90+BC122) -> 28 | BD33: 26 | BE33: =SUM(BE90+BE122) -> 24 | BF33: 24 | BG33: =SUM(BG90+BG122) -> 0
A34: Average Number of months (Possessions) in Arrears at the Sale Date | B34: 0 | C34: 0 | D34: 0 | E34: 0 | F34: 0 | G34: 0 | H34: 0 | I34: 0 | J34: 0 | K34: 0 | L34: 24.42 | M34: 0 | N34: 0 | O34: 0 | P34: 0 | Q34: 0 | R34: 0 | S34: 0 | T34: 0 | U34: 0 | V34: 0 | W34: 0 | X34: 0 | Y34: 0 | Z34: 0 | AA34: 0 | AB34: 0 | AC34: 0 | AD34: 0 | AE34: 0 | AF34: 5.18 | AG34: 0 | AH34: 0 | AI34: 0 | AJ34: 0 | AK34: 0 | AL34: 0 | AM34: 0 | AN34: 0 | AO34: 0 | AP34: 0 | AQ34: 0 | AR34: 0 | AS34: 0 | AT34: 0 | AU34: 0 | AV34: 0 | AW34: 0 | AX34: 0 | AY34: 0 | AZ34: 0 | BA34: 0 | BB34: 0 | BC34: 0 | BD34: 0 | BE34: 0 | BF34: 0 | BG34: 0
A35: Average Number of months (RoR) in Arrears at the Sale Date | B35: 0 | C35: 0 | D35: 2.66 | E35: 6.95 | F35: 9.73 | G35: 6.9 | H35: 0 | I35: 7.49 | J35: 0 | K35: 8.01 | L35: 0.72 | M35: 8.61 | N35: 11.46 | O35: 11.09 | P35: 10.92 | Q35: 9.19 | R35: 8.22 | S35: 10.23 | T35: 2.89 | U35: 1 | V35: 4.03 | W35: 6.93 | X35: 9.65 | Y35: 4.61 | Z35: 8.46 | AA35: 10.62 | AB35: 0.54 | AC35: 0.77 | AD35: 12.98 | AE35: 8.45 | AF35: 5.79 | AG35: 14.26 | AH35: 0.74 | AI35: 4.73 | AJ35: 5.11 | AK35: 0.12 | AL35: 0 | AM35: 0.5 | AN35: 2 | AO35: 0 | AP35: 4.72 | AQ35: 7.56 | AR35: 0.8 | AS35: 2.06 | AT35: 0.67 | AU35: 4.58 | AV35: 0 | AW35: 0 | AX35: 0 | AY35: 0 | AZ35: 0 | BA35: 0 | BB35: 0 | BC35: 4.41 | BD35: 15.25 | BE35: 0 | BF35: 0 | BG35: 0
A36: Arrears excluding Receiver of Rent and Possession Cases
A37: Performing Loans | B37: 0.9969 | C37: 0.994 | D37: 0.9952 | E37: 0.9942 | F37: 0.9945 | G37: 0.9904 | H37: 0.9882 | I37: 0.9833 | J37: 0.9845 | K37: 0.9822 | L37: 0.9731 | M37: 0.9769 | N37: 0.9768 | O37: 0.9754 | P37: 0.9803 | Q37: 0.988 | R37: 0.9928 | S37: 0.9858 | T37: 0.9887 | U37: 0.9925 | V37: 0.99 | W37: 0.9913 | X37: 0.991 | Y37: 0.9913 | Z37: 0.99 | AA37: 0.9897 | AB37: 0.9929 | AC37: 0.9963 | AD37: 0.9972 | AE37: 0.9984 | AF37: 0.9968 | AG37: 0.9987 | AH37: 0.9989 | AI37: 0.9985852957 | AJ37: 0.998367768 | AK37: 0.9984583248 | AL37: 0.9944826878 | AM37: 0.9972972832 | AN37: 0.9970663409 | AO37: 0.9997723731 | AP37: 0.9992479353 | AQ37: 0.9985201983 | AR37: 0.9983848532 | AS37: 0.998544778 | AT37: 0.9988043182 | AU37: 0.9981782424 | AV37: 0.9980878359 | AW37: 0.9985377361 | AX37: 0.9995427041 | AY37: 0.9982726091 | AZ37: 0.9964076383 | BA37: 0.9928628563 | BB37: 0.9930825427 | BC37: 0.9965628799 | BD37: 0.9952847989 | BE37: 0.9889430514 | BF37: 0.9879360229 | BG37: 0
A38: >1 to 2 months arrears | B38: 0.0024 | C38: 0.0036 | D38: 0.0032 | E38: 0.0041 | F38: 0.0036 | G38: 0.0085 | H38: 0.0083 | I38: 0.0055 | J38: 0.0105 | K38: 0.0099 | L38: 0.0146 | M38: 0.012 | N38: 0.0166 | O38: 0.0194 | P38: 0.0156 | Q38: 0.0094 | R38: 0.0062 | S38: 0.0132 | T38: 0.0098 | U38: 0.006 | V38: 0.0075 | W38: 0.0067 | X38: 0.0075 | Y38: 0.0077 | Z38: 0.0089 | AA38: 0.0083 | AB38: 0.0048 | AC38: 0.0027 | AD38: 0.002 | AE38: 0.0009 | AF38: 0.0024 | AG38: 0.0006 | AH38: 0.0005 | AI38: 0.0005697377681 | AJ38: 0.0008768535648 | AK38: 0.0008150483489 | AL38: 0.004692439914 | AM38: 0.001691927044 | AN38: 0.002260969219 | AO38: 0.000227626878 | AP38: 0.0005099264359 | AQ38: 0.001479801694 | AR38: 0.001347483757 | AS38: 0.00145522199 | AT38: 0.001195681845 | AU38: 0.001821757649 | AV38: 0.001912164052 | AW38: 0.001462263864 | AX38: 0.0004572958901 | AY38: 0.001408550718 | AZ38: 0.003225555543 | BA38: 0.006302875922 | BB38: 0.003756813426 | BC38: 0.002401534353 | BD38: 0.003525098104 | BE38: 0.008418665981 | BF38: 0.01065412911 | BG38: 0
A39: >2 to 3 months arrears | B39: 0.0006 | C39: 0.0022 | D39: 0.0015 | E39: 0.0012 | F39: 0.0015 | G39: 0.0004 | H39: 0.0021 | I39: 0.0104 | J39: 0.0022 | K39: 0.0045 | L39: 0.0077 | M39: 0.0069 | N39: 0.0032 | O39: 0.0026 | P39: 0.0028 | Q39: 0.0022 | R39: 0.0005 | S39: 0.0003 | T39: 0.001 | U39: 0.0011 | V39: 0.0017 | W39: 0.0014 | X39: 0.0009 | Y39: 0.0004 | Z39: 0.0004 | AA39: 0.0012 | AB39: 0.0011 | AC39: 0 | AD39: 0.0002 | AE39: 0 | AF39: 0.0002 | AG39: 0 | AH39: 0 | AI39: 0.0002534874869 | AJ39: 0 | AK39: 0.0001226904243 | AL39: 0.0002107641271 | AM39: 0 | AN39: 0.0006356914755 | AO39: 0 | AP39: 0 | AQ39: 0 | AR39: 0 | AS39: 0 | AT39: 0 | AU39: 0 | AV39: 0 | AW39: 0 | AX39: 0 | AY39: 0.0003188401581 | AZ39: 0 | BA39: 0.0006839836792 | BB39: 0.002794310508 | BC39: 0.0005266427948 | BD39: 0.0001378573489 | BE39: 0.001809890019 | BF39: 0.0005731756933 | BG39: 0
A40: >3 months arrears | B40: 0.0001 | C40: 0.0002 | D40: 0.0001 | E40: 0.0005 | F40: 0.0004 | G40: 0.0007 | H40: 0.0014 | I40: 0.0008 | J40: 0.0028 | K40: 0.0034 | L40: 0.0046 | M40: 0.0042 | N40: 0.0034 | O40: 0.0026 | P40: 0.0013 | Q40: 0.0004 | R40: 0.0005 | S40: 0.0007 | T40: 0.0005 | U40: 0.0004 | V40: 0.0008 | W40: 0.0006 | X40: 0.0006 | Y40: 0.0006 | Z40: 0.0007 | AA40: 0.0008 | AB40: 0.0012 | AC40: 0.001 | AD40: 0.0006 | AE40: 0.0007 | AF40: 0.0006 | AG40: 0.0007 | AH40: 0.0006 | AI40: 0.0005914790915 | AJ40: 0.0007553783994 | AK40: 0.000603936462 | AL40: 0.0006141081498 | AM40: 0.001010789755 | AN40: 3.699842965e-05 | AO40: 0 | AP40: 0.0002421382356 | AQ40: 0 | AR40: 0.0002676630707 | AS40: 0 | AT40: 0 | AU40: 0 | AV40: 0 | AW40: 0 | AX40: 0 | AY40: 0 | AZ40: 0.000366806166 | BA40: 0.0001502841223 | BB40: 0.0003663333209 | BC40: 0.0005089429248 | BD40: 0.001052245616 | BE40: 0.0008283926167 | BF40: 0.0008366722481 | BG40: 0
A41: Total | B41: =SUM(B37:B40) -> 1 | C41: 1 | D41: 1 | E41: 1 | F41: 1 | G41: 1 | H41: 1 | I41: 1 | J41: 1 | K41: 1 | L41: 1 | M41: 1 | N41: 1 | O41: 1 | P41: 1 | Q41: 1 | R41: 1 | S41: 1 | T41: 1 | U41: 1 | V41: 1 | W41: 1 | X41: =SUM(X37:X40) -> 1 | Y41: 1 | Z41: 1 | AA41: 1 | AB41: 1 | AC41: 1 | AD41: =SUM(AD37:AD40) -> 1 | AE41: 1 | AF41: 1 | AG41: 1 | AH41: 1 | AI41: 1 | AJ41: 1 | AK41: 1 | AL41: 1 | AM41: 1 | AN41: 1 | AO41: 1 | AP41: 1 | AQ41: 1 | AR41: 1 | AS41: 1 | AT41: 1 | AU41: 1 | AV41: 1 | AW41: 1 | AX41: 1 | AY41: 1 | AZ41: 1 | BA41: 1 | BB41: 1 | BC41: 1 | BD41: 1 | BE41: 1 | BF41: 1 | BG41: =SUM(BG37:BG40) -> 0
A42: Total Value of Arrears (£000's) | B42: 51 | C42: 84 | D42: 100 | E42: 106 | F42: 160 | G42: 175 | H42: 245 | I42: 345 | J42: 451 | K42: 541 | L42: 673 | M42: 623 | N42: 596 | O42: 559 | P42: 492 | Q42: 378 | R42: 310 | S42: 279 | T42: 255 | U42: 229 | V42: 216 | W42: 219 | X42: 205 | Y42: 203 | Z42: 222 | AA42: 177 | AB42: 170 | AC42: 166 | AD42: 125 | AE42: 116 | AF42: 84 | AG42: 72 | AH42: 72 | AI42: 66 | AJ42: 51 | AK42: 47.92018059 | AL42: 48.35014014 | AM42: 51.9738699 | AN42: 45.23815096 | AO42: 43.98099054 | AP42: 41.89398968 | AQ42: 23.61771007 | AR42: 54.06049967 | AS42: 17.87538942 | AT42: 14.52252865 | AU42: 15.7995998 | AV42: 18.59490128 | AW42: 17.33289025 | AX42: 23.49784995 | AY42: 17.10324003 | AZ42: 23.204809 | BA42: 26.52217974 | BB42: 60.37404007 | BC42: 29.315221 | BD42: 21.90925977 | BE42: 24.06279923 | BF42: 20.95667025 | BG42: 0
A43: Total Value of Arrears as a % of the Notes Issued (£1,000,050,466) | B43: =+B42/1000050 -> 5.099745013e-05 | C43: =+C42/1000050 -> 8.399580021e-05 | D43: 9.999500025e-05 | E43: 0.0001059947003 | F43: 0.0001599920004 | G43: 0.0001749912504 | H43: 0.0002449877506 | I43: 0.0003449827509 | J43: 0.0004509774511 | K43: 0.0005409729514 | L43: 0.0006729663517 | M43: 0.0006229688516 | N43: 0.0005959702015 | O43: 0.0005589720514 | P43: 0.0004919754012 | Q43: 0.0003779811009 | R43: 0.0003099845008 | S43: 0.0002789860507 | T43: 0.0002549872506 | U43: 0.0002289885506 | V43: 0.0002159892005 | W43: 0.0002189890505 | X43: =+X42/1000050 -> 0.0002049897505 | Y43: 0.0002029898505 | Z43: 0.0002219889006 | AA43: 0.0001769911504 | AB43: 0.0001699915004 | AC43: 0.0001659917004 | AD43: =+AD42/1000050 -> 0.0001249937503 | AE43: 0.0001159942003 | AF43: 8.399580021e-05 | AG43: 7.199640018e-05 | AH43: 7.199640018e-05 | AI43: 6.599670016e-05 | AJ43: 5.099745013e-05 | AK43: =+AK42/1000050 -> 4.79177847e-05 | AL43: 4.834772275e-05 | AM43: =+AM42/1000050 -> 5.197127133e-05 | AN43: 4.523588917e-05 | AO43: =+AO42/1000050 -> 4.39787916e-05 | AP43: 4.189189508e-05 | AQ43: =+AQ42/1000050 -> 2.361652924e-05 | AR43: 5.405779678e-05 | AS43: =+AS42/1000050 -> 1.78744957e-05 | AT43: 1.452180256e-05 | AU43: =+AU42/1000050 -> 1.579880986e-05 | AV43: 1.859397158e-05 | AW43: =+AW42/1000050 -> 1.733202365e-05 | AX43: 2.349667512e-05 | AY43: =+AY42/1000050 -> 1.710238492e-05 | AZ43: 2.320364881e-05 | BA43: =+BA42/1000050 -> 2.652085369e-05 | BB43: 6.037102152e-05 | BC43: =+BC42/1000050 -> 2.931375532e-05 | BD43: 2.190816436e-05 | BE43: =+BE42/1000050 -> 2.406159615e-05 | BF43: 2.095562247e-05 | BG43: =+BG42/1000050 -> 0
A45: Underlying Assets - Overall | B45: 2006-06-30 | C45: 2006-09-29 | D45: 2006-12-29 | E45: 2007-03-30 | F45: 2007-06-29 | G45: 2007-09-28 | H45: 2007-12-31 | I45: 2008-03-31 | J45: 2008-06-30 | K45: 2008-09-30 | L45: 2008-12-31 | M45: 2009-03-31 | N45: 2009-06-30 | O45: 2009-09-30 | P45: 2009-12-31 | Q45: 2010-03-31 | R45: 2010-06-30 | S45: 2010-09-30 | T45: 2010-12-31 | U45: 2011-03-31 | V45: 2011-06-30 | W45: 2011-09-30 | X45: 2011-12-30 | Y45: 2012-03-30 | Z45: 2012-06-29 | AA45: 2012-09-28 | AB45: 2012-12-31 | AC45: 2013-03-28 | AD45: 2013-06-28 | AE45: 2013-09-30 | AF45: 2013-12-31 | AG45: 2014-03-31 | AH45: 2014-06-30 | AI45: 2014-09-30 | AJ45: 2014-12-31 | AK45: 2015-03-31 | AL45: 2015-06-30 | AM45: =+AM5 -> 2015-09-30 | AN45: 2015-12-31 | AO45: 2016-03-31 | AP45: 2016-06-30 | AQ45: 2016-09-30 | AR45: 2016-12-30 | AS45: =+AS5 -> 2017-03-31 | AT45: 2017-06-30 | AU45: =+AU5 -> 2017-09-29 | AV45: 2017-12-29 | AW45: =+AW5 -> 2018-03-29 | AX45: 2018-06-29 | AY45: =+AY5 -> 2018-09-28 | AZ45: 2018-12-31 | BA45: =+BA5 -> 2019-03-29 | BB45: 2019-06-28 | BC45: =+BC5 -> 2019-09-30 | BD45: 2019-12-31 | BE45: =+BE5 -> 2020-03-31 | BF45: 2020-06-30 | BG45: =+BG5 -> 2020-09-30
A46: Weighted Average LTV | B46: 0.8066 | C46: 0.8072 | D46: 0.8077 | E46: 0.8075 | F46: 0.8074 | G46: 0.8072 | H46: 0.8073 | I46: 0.8083 | J46: 0.8092 | K46: 0.8089 | L46: 0.809 | M46: 0.8087 | N46: 0.8085 | O46: 0.8082 | P46: 0.8077 | Q46: 0.8072 | R46: 0.8065 | S46: 0.806 | T46: 0.806 | U46: 0.8056 | V46: 0.8058 | W46: 0.8054 | X46: 0.8052 | Y46: 0.805 | Z46: 0.8047 | AA46: 0.8048 | AB46: 0.8045 | AC46: 0.8042 | AD46: 0.8038 | AE46: 0.8037 | AF46: 0.8037 | AG46: 0.8028 | AH46: 0.8021 | AI46: 0.801587896 | AJ46: 0.8011507126 | AK46: 0.8009778135 | AL46: 0.8003975931 | AM46: 0.7997895759 | AN46: 0.799631649 | AO46: 0.7990866817 | AP46: 0.7983201387 | AQ46: 0.7984560819 | AR46: 0.7976736648 | AS46: 0.7968197096 | AT46: 0.7965962846 | AU46: 0.7957511754 | AV46: 0.7953917546 | AW46: 0.7943595541 | AX46: 0.7940796325 | AY46: 0.7937534477 | AZ46: 0.7938332577 | BA46: 0.7936529942 | BB46: 0.7935730048 | BC46: 0.7932376603 | BD46: 0.7924508498 | BE46: 0.7920842219 | BF46: 0.7923958873 | BG46: 0
A47: Weighted Average Nationwide Indexed LTV | B47: 0.772 | C47: 0.7574 | D47: 0.7485 | E47: 0.7344 | F47: 0.7219 | G47: 0.7012 | H47: 0.6944 | I47: 0.6993 | J47: 0.7181 | K47: 0.7457 | L47: 0.8041 | M47: 0.8256 | N47: 0.8747 | O47: 0.848 | P47: 0.8171 | Q47: 0.7991 | R47: 0.7994 | S47: 0.7774 | T47: 0.7994 | U47: 0.804 | V47: 0.786 | W47: 0.7872 | X47: 0.7906 | Y47: 0.8077 | Z47: 0.8084 | AA47: 0.7977 | AB47: 0.7964 | AC47: 0.8049 | AD47: 0.8032 | AE47: 0.7672 | AF47: 0.7662 | AG47: 0.7534 | AH47: 0.7415 | AI47: 0.7012754853 | AJ47: 0.7004286568 | AK47: 0.7012167371 | AL47: 0.70245802 | AM47: 0.6829022775 | AN47: 0.6799364302 | AO47: 0.6785981835 | AP47: 0.6744946749 | AQ47: 0.6550844018 | AR47: 0.6505070268 | AS47: 0.6485562349 | AT47: 0.6491207198 | AU47: 0.6345568754 | AV47: 0.6353718569 | AW47: 0.6328324036 | AX47: 0.6208144131 | AY47: 0.6207879116 | AZ47: 0.6165384958 | BA47: 0.6263239168 | BB47: 0.6250569615 | BC47: 0.6177292352 | BD47: 0.6135457208 | BE47: 0.6192149248 | BF47: 0.6125669779 | BG47: 0
A48: Weighted Average Halifax Indexed LTV | B48: 0.7682 | C48: 0.7528 | D48: 0.7469 | E48: 0.7204 | F48: 0.7023 | G48: 0.6859 | H48: 0.6802 | I48: 0.697 | J48: 0.7144 | K48: 0.7383 | L48: 0.7906 | M48: 0.8437 | N48: 0.8802 | O48: 0.8775 | P48: 0.8524 | Q48: 0.8315 | R48: 0.8287 | S48: 0.8167 | T48: 0.8276 | U48: 0.8396 | V48: 0.8546 | W48: 0.8484 | X48: 0.8426 | Y48: 0.8469 | Z48: 0.8493 | AA48: 0.8482 | AB48: 0.85 | AC48: 0.8527 | AD48: 0.8366 | AE48: 0.8133 | AF48: 0.7974 | AG48: 0.7931 | AH48: 0.7756 | AI48: 0.7486358787 | AJ48: 0.724610051 | AK48: 0.7316529309 | AL48: 0.7133408616 | AM48: 0.6813186516 | AN48: 0.6747722139 | AO48: 0.6770542405 | AP48: 0.6529114292 | AQ48: N/A | AR48: N/A | AS48: N/A | AT48: N/A | AU48: N/A | AV48: N/A | AW48: N/A | AX48: N/A | AY48: N/A | AZ48: N/A | BA48: N/A | BB48: N/A | BC48: N/A | BD48: N/A | BE48: N/A | BF48: N/A | BG48: N/A
A49: % of Variable Rate Mortgages | B49: 0.0128 | C49: 0.015 | D49: 0.0179 | E49: 0.0226 | F49: 0.0272 | G49: 0.0288 | H49: 0.0284 | I49: 0.0277 | J49: 0.0271 | K49: 0.0269 | L49: 0.0259 | M49: 0.0033 | N49: 0.003 | O49: 0.0023 | P49: 0.0017 | Q49: 0.0017 | R49: 0.0016 | S49: 0.0016 | T49: 0.0016 | U49: 0.0016 | V49: 0.0016 | W49: 0.0015 | X49: 0.0015 | Y49: 0.0015 | Z49: 0.0015 | AA49: 0.0012 | AB49: 0.0012 | AC49: 0.0012 | AD49: 0.0012 | AE49: 0.0012 | AF49: 0.0012 | AG49: 0.0012 | AH49: 0.0012 | AI49: 0.001198669336 | AJ49: 0.001197192632 | AK49: 0.001161885324 | AL49: 0.001171098732 | AM49: 0.00111123416 | AN49: 0.001126962466 | AO49: 0.001141396941 | AP49: 0.001148362885 | AQ49: 0.001156789455 | AR49: 0.001169494279 | AS49: 0.001179350939 | AT49: 0.001101082233 | AU49: 0.001114979299 | AV49: 0.00113285616 | AW49: 0.001127427025 | AX49: 0.001140657134 | AY49: 0.001157618383 | AZ49: 0.001178888355 | BA49: 0.001198682244 | BB49: 0.001218694235 | BC49: 0.001129616797 | BD49: 0.001142187937 | BE49: 0.001160499895 | BF49: 0.001168337175 | BG49: 0
A50: % of Fixed Rate Mortgages | B50: 0.7978 | C50: 0.8071 | D50: 0.8048 | E50: 0.7944 | F50: 0.7954 | G50: 0.8032 | H50: 0.79 | I50: 0.6172 | J50: 0.6876 | K50: 0.6604 | L50: 0.641 | M50: 0.3409 | N50: 0.3273 | O50: 0.3119 | P50: 0.3102 | Q50: 0.2777 | R50: 0.143 | S50: 0.1429 | T50: 0.0697 | U50: 0.026 | V50: 0.0147 | W50: 0.0105 | X50: 0.0099 | Y50: 0.0093 | Z50: 0.0088 | AA50: 0.0089 | AB50: 0.0082 | AC50: 0.0082 | AD50: 0.0001 | AE50: 0 | AF50: 0 | AG50: 0 | AH50: 0 | AI50: 0 | AJ50: 0 | AK50: 0 | AL50: 0 | AM50: 0 | AN50: 0 | AO50: 0 | AP50: 0 | AQ50: 0 | AR50: 0 | AS50: 0 | AT50: 0 | AU50: 0 | AV50: 0 | AW50: 0 | AX50: 0 | AY50: 0.008274039812 | AZ50: 0.007554556533 | BA50: 0.007715697017 | BB50: 0.007880316293 | BC50: 0.008051646565 | BD50: 0.008183799584 | BE50: 0.008359261779 | BF50: 0.008472494817 | BG50: 0
A51: % of Base Rate Mortgages | B51: 0 | C51: 0 | D51: 0 | E51: 0 | F51: 0 | G51: 0 | H51: 0 | I51: 0 | J51: 0 | K51: 0 | L51: 0 | M51: 0.0166392512 | N51: 0.0168 | O51: 0.0169 | P51: 0.0171 | Q51: 0.0169 | R51: 0.017 | S51: 0.0172 | T51: 0.0166 | U51: 0.0167 | V51: 0.0168 | W51: 0.0168 | X51: 0.0169 | Y51: 0.0168 | Z51: 0.0163 | AA51: 0.0162 | AB51: 0.016 | AC51: 0.016 | AD51: 0.0161 | AE51: 0.0162 | AF51: 0.0163 | AG51: 0.0164 | AH51: 0.0166 | AI51: 0.01637998296 | AJ51: 0.01638038564 | AK51: 0.01624521603 | AL51: 0.01651896164 | AM51: 0.01672239211 | AN51: 0.01607737608 | AO51: 0.01639676771 | AP51: 0.01652420011 | AQ51: 0.01618283681 | AR51: 0.01648380961 | AS51: 0.01675099509 | AT51: 0.01697630067 | AU51: 0.01728258902 | AV51: 0.01748550745 | AW51: 0.0177456972 | AX51: 0.01802103765 | AY51: 0.01836656907 | AZ51: 0.01878399896 | BA51: 0.01917417847 | BB51: 0.0195751909 | BC51: 0.01999383029 | BD51: 0.02031488682 | BE51: 0.02042857349 | BF51: 0.02066924329 | BG51: 0
A52: % of Libor Linked Mortgages | B52: 0.1894 | C52: 0.178 | D52: 0.1773 | E52: 0.183 | F52: 0.1774 | G52: 0.168 | H52: 0.1817 | I52: 0.3551 | J52: 0.2853 | K52: 0.3128 | L52: 0.3331 | M52: 0.6391177654 | N52: 0.6529 | O52: 0.6689 | P52: 0.671 | Q52: 0.7037 | R52: 0.8384 | S52: 0.8383 | T52: 0.9121 | U52: 0.9557 | V52: 0.9669 | W52: 0.9712 | X52: 0.9717 | Y52: 0.9724 | Z52: 0.9734 | AA52: 0.9737 | AB52: 0.9746 | AC52: 0.9746 | AD52: 0.9826 | AE52: 0.9826 | AF52: 0.9824 | AG52: 0.9824 | AH52: 0.9822 | AI52: 0.9824213477 | AJ52: 0.9824224217 | AK52: 0.9825928986 | AL52: 0.9823099396 | AM52: 0.9821663737 | AN52: 0.9827956615 | AO52: 0.9824618354 | AP52: 0.982327437 | AQ52: 0.9826603737 | AR52: 0.9823466961 | AS52: 0.982069654 | AT52: 0.9819226171 | AU52: 0.9816024317 | AV52: 0.9813816364 | AW52: 0.9811268758 | AX52: 0.9808383052 | AY52: 0.9722017727 | AZ52: 0.9724825561 | BA52: 0.9719114423 | BB52: 0.9713257986 | BC52: 0.9708249064 | BD52: 0.9703591257 | BE52: 0.9700516648 | BF52: 0.9696899247 | BG52: 0
A53: Weighted Average Loan Size | B53: 129195.92 | C53: 130407.2 | D53: 131281 | E53: 131851.76 | F53: 133115.17 | G53: 133691.51 | H53: 134269.14 | I53: 133275.71 | J53: 133445.2 | K53: 133155.03 | L53: 133343.41 | M53: 133482.64 | N53: 133352.95 | O53: 133538.96 | P53: 133467.47 | Q53: 133526.38 | R53: 133477.93 | S53: 133236.58 | T53: 133123.61 | U53: 132831.12 | V53: 132272.43 | W53: 132116.37 | X53: 131861.34 | Y53: 131609.37 | Z53: 131499.17 | AA53: 131477.9 | AB53: 131299.8 | AC53: 131191.03 | AD53: 130990.65 | AE53: 130983.93 | AF53: 130736.57 | AG53: 130670.56 | AH53: 130567.55 | AI53: 130373.1273 | AJ53: 130216.8465 | AK53: 129931.1543 | AL53: 129400.3254 | AM53: 129336.2726 | AN53: 129154.1243 | AO53: 129066.8843 | AP53: 129039.0259 | AQ53: 129001.3694 | AR53: 128871.163 | AS53: 128634.2753 | AT53: 128586.9303 | AU53: 128991.4414 | AV53: 128883.2705 | AW53: 128554.6419 | AX53: 128196.1752 | AY53: 127976.0015 | AZ53: 127906.1061 | BA53: 127716.7977 | BB53: 127402.5615 | BC53: 127261.187 | BD53: 127295.8909 | BE53: 127152.532 | BF53: 127111.1376 | BG53: 0
A54: Weighted Average Interest Rate | B54: 0.05117 | C54: 0.05129 | D54: 0.05192 | E54: 0.05274 | F54: 0.05325 | G54: 0.05414 | H54: 0.05536 | I54: 0.05909 | J54: 0.05786 | K54: 0.05811 | L54: 0.05629 | M54: 0.0445 | N54: 0.03848 | O54: 0.0344 | P54: 0.03248 | Q54: 0.03188 | R54: 0.02811 | S54: 0.02848 | T54: 0.02641 | U54: 0.02599 | V54: 0.02623 | W54: 0.02643 | X54: 0.02768 | Y54: 0.02822 | Z54: 0.02783 | AA54: 0.02532 | AB54: 0.02312 | AC54: 0.023 | AD54: 0.02272 | AE54: 0.02279 | AF54: 0.02282 | AG54: 0.02282 | AH54: 0.02287 | AI54: 0.02303334449 | AJ54: 0.02304029757 | AK54: 0.02309702887 | AL54: 0.02312478349 | AM54: 0.02322540218 | AN54: 0.02320950276 | AO54: 0.02351421383 | AP54: 0.02355950768 | AQ54: 0.02242480081 | AR54: 0.02154660649 | AS54: 0.02135893839 | AT54: 0.02106448212 | AU54: 0.02103198129 | AV54: 0.0223889841 | AW54: 0.02366230652 | AX54: 0.02479336485 | AY54: 0.02531333788 | AZ54: 0.02664563659 | BA54: 0.02695392752 | BB54: 0.02623803173 | BC54: 0.02563744711 | BD54: 0.02574051456 | BE54: 0.02480423561 | BF54: 0.0218082925 | BG54: 0
A55: Weighted Average Maturity Date (years) | B55: 20.92 | C55: 20.68 | D55: 20.45 | E55: 20.22 | F55: 19.95 | G55: 19.73 | H55: 19.51 | I55: 19.2 | J55: 18.98 | K55: 18.73 | L55: 18.48 | M55: 18.23 | N55: 17.98 | O55: 17.74 | P55: 17.5 | Q55: 17.27 | R55: 17.02 | S55: 16.76 | T55: 16.52 | U55: 16.28 | V55: 16.04 | W55: 15.79 | X55: 15.54 | Y55: 15.32 | Z55: 15.09 | AA55: 14.87 | AB55: 14.62 | AC55: 14.37 | AD55: 14.13 | AE55: 13.9 | AF55: 13.67 | AG55: 13.42 | AH55: 13.18 | AI55: 12.94362201 | AJ55: 12.70738651 | AK55: 12.47312621 | AL55: 12.23830337 | AM55: 12.00563443 | AN55: 11.89913802 | AO55: 11.70045102 | AP55: 11.47949952 | AQ55: 11.25743254 | AR55: 11.02271971 | AS55: 10.78521588 | AT55: 10.56339433 | AU55: 10.32589971 | AV55: 10.12953974 | AW55: 9.916684935 | AX55: 9.669241314 | AY55: 9.577615016 | AZ55: 9.368244089 | BA55: 9.13147241 | BB55: 8.893750201 | BC55: 8.683782422 | BD55: 8.455804636 | BE55: 8.218714932 | BF55: 7.992854582 | BG55: 0
A56: Weighted Average Seasoning (months) | B56: 12.87 | C56: 15.55 | D56: 18.38 | E56: 21.26 | F56: 24.08 | G56: 26.89 | H56: 29.71 | I56: 33.48 | J56: 36.76 | K56: 39.82 | L56: 42.84 | M56: 45.84 | N56: 48.82 | O56: 51.88 | P56: 54.9 | Q56: 57.86 | R56: 60.86 | S56: 63.93 | T56: 66.93 | U56: 69.88 | V56: 72.92 | W56: 75.94 | X56: 78.97 | Y56: 81.91 | Z56: 84.92 | AA56: 87.94 | AB56: 90.98 | AC56: 93.95 | AD56: 96.94 | AE56: 99.97 | AF56: 103.01 | AG56: 105.97 | AH56: 109 | AI56: 112.0537687 | AJ56: 115.109681 | AK56: 118.1245645 | AL56: 121.0511359 | AM56: 124.102537 | AN56: 127.18008 | AO56: 130.2052482 | AP56: 133.2544389 | AQ56: 136.19974 | AR56: 139.2550455 | AS56: 142.2526674 | AT56: 145.3223486 | AU56: 148.4103367 | AV56: 151.5259083 | AW56: 154.4624354 | AX56: 157.4474798 | AY56: 160.5255052 | AZ56: 163.5448606 | BA56: 166.446499 | BB56: 169.4681571 | BC56: 172.4787891 | BD56: 175.5293252 | BE56: 178.4832675 | BF56: 181.5035064 | BG56: 0
A57: % of Interest Only Mortgages | B57: 0.9278 | C57: 0.9284 | D57: 0.9301 | E57: 0.9309 | F57: 0.9316 | G57: 0.9344 | H57: 0.9353 | I57: 0.9361 | J57: 0.9414 | K57: 0.9434 | L57: 0.9434 | M57: 0.9469663403 | N57: 0.9489 | O57: 0.9494 | P57: 0.9492 | Q57: 0.9497 | R57: 0.9511 | S57: 0.952 | T57: 0.9518 | U57: 0.9524 | V57: 0.9532 | W57: 0.9543 | X57: 0.9549 | Y57: 0.9553 | Z57: 0.9563 | AA57: 0.9563 | AB57: 0.957 | AC57: 0.9573 | AD57: 0.958 | AE57: 0.9588 | AF57: 0.9589 | AG57: 0.9598 | AH57: 0.9605 | AI57: 0.9612613589 | AJ57: 0.9610667653 | AK57: 0.9614469295 | AL57: 0.9616180268 | AM57: 0.9625554324 | AN57: 0.9639601692 | AO57: 0.9655608911 | AP57: 0.9661974159 | AQ57: 0.9680743077 | AR57: 0.9684907451 | AS57: 0.9699326934 | AT57: 0.9707453199 | AU57: 0.9709307518 | AV57: 0.9711075852 | AW57: 0.971492847 | AX57: 0.972271918 | AY57: 0.9728412517 | AZ57: 0.9736378555 | BA57: 0.9741392325 | BB57: 0.9752047741 | BC57: 0.9760437465 | BD57: 0.9764852305 | BE57: 0.9769076663 | BF57: 0.978384853 | BG57: 0
A58: % of Repayment Mortgages | B58: 0.0722 | C58: 0.0716 | D58: 0.0699 | E58: 0.0691 | F58: 0.0684 | G58: 0.0656 | H58: 0.0647 | I58: 0.0639 | J58: 0.0586 | K58: 0.0566 | L58: 0.0566 | M58: 0.0530336597 | N58: 0.0511 | O58: 0.0506 | P58: 0.0508 | Q58: 0.0503 | R58: 0.0489 | S58: 0.048 | T58: 0.0482 | U58: 0.0476 | V58: 0.0468 | W58: 0.0457 | X58: 0.0451 | Y58: 0.0447 | Z58: 0.0437 | AA58: 0.0437 | AB58: 0.043 | AC58: 0.0427 | AD58: 0.042 | AE58: 0.0412 | AF58: 0.0411 | AG58: 0.0402 | AH58: 0.0395 | AI58: 0.03873864114 | AJ58: 0.03893323471 | AK58: 0.03855307049 | AL58: 0.03838197321 | AM58: 0.03744456761 | AN58: 0.03603983082 | AO58: 0.03443910893 | AP58: 0.03380258407 | AQ58: 0.03192569228 | AR58: 0.03150925489 | AS58: 0.03006730664 | AT58: 0.02925468009 | AU58: 0.02906924817 | AV58: 0.0288924148 | AW58: 0.02850715296 | AX58: 0.02772808201 | AY58: 0.02715874832 | AZ58: 0.0263621445 | BA58: 0.0258607675 | BB58: 0.02479522589 | BC58: 0.02395625348 | BD58: 0.02351476951 | BE58: 0.02309233367 | BF58: 0.02161514697 | BG58: 0
A59: % of Mortgages in London | B59: 0.1942 | C59: 0.1936 | D59: 0.1929 | E59: 0.1928 | F59: 0.1918 | G59: 0.1905 | H59: 0.1892 | I59: 0.1697 | J59: 0.1624 | K59: 0.1589 | L59: 0.1587 | M59: 0.1566 | N59: 0.1565 | O59: 0.155 | P59: 0.1548 | Q59: 0.1552 | R59: 0.1529 | S59: 0.1524 | T59: 0.1506 | U59: 0.149 | V59: 0.1454 | W59: 0.1439 | X59: 0.1429 | Y59: 0.143 | Z59: 0.1421 | AA59: 0.1416 | AB59: 0.142 | AC59: 0.1412 | AD59: 0.1408 | AE59: 0.1401 | AF59: 0.1398 | AG59: 0.139 | AH59: 0.1379 | AI59: 0.1349772574 | AJ59: 0.134446747 | AK59: 0.1323232317 | AL59: 0.1298375048 | AM59: 0.1295983288 | AN59: 0.1292507348 | AO59: 0.12744178 | AP59: 0.1267211795 | AQ59: 0.125084935 | AR59: 0.1231478441 | AS59: 0.1203520355 | AT59: 0.1190107686 | AU59: 0.1161425958 | AV59: 0.1169657905 | AW59: 0.117058053 | AX59: 0.1177870836 | AY59: 0.1175379137 | AZ59: 0.1184778708 | BA59: 0.1178679147 | BB59: 0.1166825446 | BC59: 0.1152693769 | BD59: 0.1165295402 | BE59: 0.113115189 | BF59: 0.1114022501 | BG59: 0
A60: % of Mortgages in the South East | B60: 0.3167 | C60: 0.3158 | D60: 0.3161 | E60: 0.3159 | F60: 0.3175 | G60: 0.3196 | H60: 0.316 | I60: 0.3037 | J60: 0.299 | K60: 0.2998 | L60: 0.2994 | M60: 0.2994 | N60: 0.3007 | O60: 0.3009 | P60: 0.3003 | Q60: 0.3002 | R60: 0.3008 | S60: 0.2994 | T60: 0.3004 | U60: 0.2997 | V60: 0.301 | W60: 0.3004 | X60: 0.3007 | Y60: 0.3006 | Z60: 0.3008 | AA60: 0.301 | AB60: 0.3001 | AC60: 0.3002 | AD60: 0.2998 | AE60: 0.3002 | AF60: 0.2991 | AG60: 0.2987 | AH60: 0.2979 | AI60: 0.2975623647 | AJ60: 0.2968841177 | AK60: 0.2961518152 | AL60: 0.2957629337 | AM60: 0.2961302917 | AN60: 0.2947555808 | AO60: 0.2930655009 | AP60: 0.2924685491 | AQ60: 0.292600365 | AR60: 0.2903259881 | AS60: 0.2886923627 | AT60: 0.2888253289 | AU60: 0.2905380452 | AV60: 0.2860481148 | AW60: 0.2861328211 | AX60: 0.285487916 | AY60: 0.2845465595 | AZ60: 0.2868088351 | BA60: 0.2849109225 | BB60: 0.2850640075 | BC60: 0.2835438845 | BD60: 0.2823794921 | BE60: 0.2818110062 | BF60: 0.2817191178 | BG60: 0
A61: % of Owner Occupied Mortgages | B61: 0 | C61: 0 | D61: 0 | E61: 0 | F61: 0 | G61: 0 | H61: 0 | I61: 0 | J61: 0 | K61: 0 | L61: 0 | M61: 0 | N61: 0 | O61: 0 | P61: 0 | Q61: 0 | R61: 0 | S61: 0 | T61: 0 | U61: 0 | V61: 0 | W61: 0 | X61: 0 | Y61: 0 | Z61: 0 | AA61: 0 | AB61: 0 | AC61: 0 | AD61: 0 | AE61: 0 | AF61: 0 | AG61: 0 | AH61: 0 | AI61: 0 | AJ61: 0 | AK61: 0 | AL61: 0 | AM61: 0 | AN61: 0 | AO61: 0 | AP61: 0 | AQ61: 0 | AR61: 0 | AS61: 0 | AT61: 0 | AU61: 0 | AV61: 0 | AW61: 0 | AX61: 0 | AY61: 0 | AZ61: 0 | BA61: 0 | BB61: 0 | BC61: 0 | BD61: 0 | BE61: 0 | BF61: 0 | BG61: 0
A62: % of Investment Home Loans - Professional Landlords | B62: 0.5323 | C62: 0.5268 | D62: 0.5254 | E62: 0.5259 | F62: 0.5244 | G62: 0.5221 | H62: 0.5248 | I62: 0.561 | J62: 0.5791 | K62: 0.5807 | L62: 0.5801 | M62: 0.5816 | N62: 0.5825 | O62: 0.5843 | P62: 0.5857 | Q62: 0.5858 | R62: 0.587 | S62: 0.5873 | T62: 0.5874 | U62: 0.5874 | V62: 0.5875 | W62: 0.589 | X62: 0.5896 | Y62: 0.5894 | Z62: 0.5914 | AA62: 0.5928 | AB62: 0.5942 | AC62: 0.595 | AD62: 0.5949 | AE62: 0.5958 | AF62: 0.5977 | AG62: 0.599 | AH62: 0.602 | AI62: 0.6035297256 | AJ62: 0.6059734925 | AK62: 0.6082109735 | AL62: 0.6095121966 | AM62: 0.611459034 | AN62: 0.6146473304 | AO62: 0.6196094514 | AP62: 0.6213101833 | AQ62: 0.5713022017 | AR62: 0.6231678897 | AS62: 0.62649653 | AT62: 0.6282511884 | AU62: 0.6278982481 | AV62: 0.6295053439 | AW62: 0.6286251905 | AX62: 0.6281208591 | AY62: 0.628325888 | AZ62: 0.626875108 | BA62: 0.6292940719 | BB62: 0.632073161 | BC62: 0.6314153682 | BD62: 0.6342899441 | BE62: 0.639389676 | BF62: 0.6436103348 | BG62: 0
A63: % of Investment Home Loans - Emerging Professional Landlords | B63: 0.4677 | C63: 0.4732 | D63: 0.4746 | E63: 0.4741 | F63: 0.4756 | G63: 0.4779 | H63: 0.4752 | I63: 0.439 | J63: 0.4209 | K63: 0.4193 | L63: 0.4199 | M63: 0.4184 | N63: 0.4175 | O63: 0.4157 | P63: 0.4143 | Q63: 0.4142 | R63: 0.413 | S63: 0.4127 | T63: 0.4126 | U63: 0.4126 | V63: 0.4125 | W63: 0.411 | X63: 0.4104 | Y63: 0.4106 | Z63: 0.4086 | AA63: 0.4072 | AB63: 0.4058 | AC63: 0.405 | AD63: 0.4051 | AE63: 0.4042 | AF63: 0.4023 | AG63: 0.401 | AH63: 0.398 | AI63: 0.3964702744 | AJ63: 0.3940265075 | AK63: 0.3917890265 | AL63: 0.3904878034 | AM63: 0.388540966 | AN63: 0.3853526696 | AO63: 0.3803905486 | AP63: 0.3786898167 | AQ63: 0.4286977983 | AR63: 0.3768321103 | AS63: 0.37350347 | AT63: 0.3717488116 | AU63: 0.3721017519 | AV63: 0.3704946561 | AW63: 0.3713748095 | AX63: 0.3718791409 | AY63: 0.371674112 | AZ63: 0.373124892 | BA63: 0.3707059281 | BB63: 0.367926839 | BC63: 0.3685846318 | BD63: 0.3657100559 | BE63: 0.360610324 | BF63: 0.3563896652 | BG63: 0
A64: Weighted Average Interest Coverage Ratio (calculated at the origination date) | B64: 1.75 | C64: 1.75 | D64: 1.75 | E64: 1.74 | F64: 1.75 | G64: 1.72 | H64: 1.72 | I64: 1.74 | J64: 1.75 | K64: 1.76 | L64: 1.76 | M64: 1.76 | N64: 1.76 | O64: 1.76 | P64: 1.77 | Q64: 1.77 | R64: 1.77 | S64: 1.77 | T64: 1.77 | U64: 1.76 | V64: 1.76 | W64: 1.75 | X64: 1.75 | Y64: 1.74 | Z64: 1.74 | AA64: 1.74 | AB64: 1.74 | AC64: 1.74 | AD64: 1.74 | AE64: 1.74 | AF64: 1.74 | AG64: 1.73 | AH64: 1.73 | AI64: 1.733989528 | AJ64: 1.735712288 | AK64: 1.737085671 | AL64: 1.738832659 | AM64: 1.738989222 | AN64: 1.742176633 | AO64: 1.739143696 | AP64: 1.740093394 | AQ64: 1.745554432 | AR64: 1.746106999 | AS64: 1.745922453 | AT64: 1.747569158 | AU64: 1.75151651 | AV64: 1.751490541 | AW64: 1.754055076 | AX64: 1.723070813 | AY64: 1.724676284 | AZ64: 1.715938949 | BA64: 1.713166073 | BB64: 1.714233241 | BC64: 1.717107413 | BD64: 1.715786046 | BE64: 1.712944039 | BF64: 1.713561602 | BG64: 0
A65: % of Paragon Originated Assets | B65: 0.4016 | C65: 0.3934 | D65: 0.3888 | E65: 0.3878 | F65: 0.3866 | G65: 0.3845 | H65: 0.3861 | I65: 0.4232 | J65: 0.4412 | K65: 0.4421 | L65: 0.4416 | M65: 0.4447 | N65: 0.4451 | O65: 0.4467 | P65: 0.4482 | Q65: 0.4491 | R65: 0.4501 | S65: 0.4498 | T65: 0.45 | U65: 0.4503 | V65: 0.4491 | W65: 0.4502 | X65: 0.4496 | Y65: 0.4481 | Z65: 0.4501 | AA65: 0.4511 | AB65: 0.4519 | AC65: 0.4529 | AD65: 0.4531 | AE65: 0.4527 | AF65: 0.4545 | AG65: 0.455 | AH65: 0.458 | AI65: 0.4607410339 | AJ65: 0.4626400593 | AK65: 0.465277991 | AL65: 0.4669576067 | AM65: 0.467977614 | AN65: 0.4710737669 | AO65: 0.4747694386 | AP65: 0.4770197297 | AQ65: 0.4783650778 | AR65: 0.4823398574 | AS65: 0.4856480007 | AT65: 0.4882554567 | AU65: 0.4902328419 | AV65: 0.4921857299 | AW65: 0.4940744198 | AX65: 0.4948503164 | AY65: 0.4953940985 | AZ65: 0.4931169251 | BA65: 0.4942206063 | BB65: 0.4974189763 | BC65: 0.4980881619 | BD65: 0.5008187454 | BE65: 0.5026326613 | BF65: 0.5057008977 | BG65: 0
A66: % of Mortgage Trust Originated Assets | B66: 0.5984 | C66: 0.6066 | D66: 0.6112 | E66: 0.6122 | F66: 0.6134 | G66: 0.6155 | H66: 0.6139 | I66: 0.5768 | J66: 0.5588 | K66: 0.5579 | L66: 0.5584 | M66: 0.5553 | N66: 0.5549 | O66: 0.5533 | P66: 0.5518 | Q66: 0.5509 | R66: 0.5499 | S66: 0.5502 | T66: 0.55 | U66: 0.5497 | V66: 0.5509 | W66: 0.5498 | X66: 0.5504 | Y66: 0.5519 | Z66: 0.5499 | AA66: 0.5489 | AB66: 0.5481 | AC66: 0.5471 | AD66: 0.5469 | AE66: 0.5473 | AF66: 0.5455 | AG66: 0.545 | AH66: 0.542 | AI66: 0.5392589661 | AJ66: 0.5373599407 | AK66: 0.534722009 | AL66: 0.5330423933 | AM66: 0.532022386 | AN66: 0.5289262331 | AO66: 0.5252305614 | AP66: 0.5229802703 | AQ66: 0.5216349222 | AR66: 0.5176601426 | AS66: 0.5143519993 | AT66: 0.5117445433 | AU66: 0.5097671581 | AV66: 0.5078142701 | AW66: 0.5059255802 | AX66: 0.5051496836 | AY66: 0.5046059015 | AZ66: 0.5068830749 | BA66: 0.5057793937 | BB66: 0.5025810237 | BC66: 0.5019118381 | BD66: 0.4991812546 | BE66: 0.4973673387 | BF66: 0.4942991023 | BG66: 0
A68: Underlying Assets - Paragon Originated Assets | B68: 2006-06-30 | C68: 2006-09-29 | D68: 2006-12-29 | E68: 2007-03-30 | F68: 2007-06-29 | G68: 2007-09-28 | H68: 2007-12-31 | I68: 2008-03-31 | J68: 2008-06-30 | K68: 2008-09-30 | L68: 2008-12-31 | M68: 2009-03-31 | N68: 2009-06-30 | O68: 2009-09-30 | P68: 2009-12-31 | Q68: 2010-03-31 | R68: 2010-06-30 | S68: 2010-09-30 | T68: 2010-12-31 | U68: 2011-03-31 | V68: 2011-06-30 | W68: 2011-09-30 | X68: 2011-12-30 | Y68: 2012-03-30 | Z68: 2012-06-29 | AA68: 2012-09-28 | AB68: 2012-12-31 | AC68: 2013-03-28 | AD68: 2013-06-28 | AE68: 2013-09-30 | AF68: 2013-12-31 | AG68: 2014-03-31 | AH68: 2014-06-30 | AI68: 2014-09-30 | AJ68: 2014-12-31 | AK68: 2015-03-31 | AL68: 2015-06-30 | AM68: =+AM45 -> 2015-09-30 | AN68: 2015-12-31 | AO68: 2016-03-31 | AP68: 2016-06-30 | AQ68: 2016-09-30 | AR68: 2016-12-30 | AS68: =+AS45 -> 2017-03-31 | AT68: 2017-06-30 | AU68: =+AU45 -> 2017-09-29 | AV68: 2017-12-29 | AW68: =+AW45 -> 2018-03-29 | AX68: 2018-06-29 | AY68: =+AY45 -> 2018-09-28 | AZ68: 2018-12-31 | BA68: =+BA45 -> 2019-03-29 | BB68: 2019-06-28 | BC68: =+BC45 -> 2019-09-30 | BD68: 2019-12-31 | BE68: =+BE45 -> 2020-03-31 | BF68: 2020-06-30 | BG68: =+BG45 -> 2020-09-30
A69: Weighted Average LTV | B69: 0.7952 | C69: 0.7957 | D69: 0.7967 | E69: 0.7959 | F69: 0.796 | G69: 0.7967 | H69: 0.7971 | I69: 0.796 | J69: 0.7962 | K69: 0.7953 | L69: 0.796 | M69: 0.796 | N69: 0.7957 | O69: 0.7952 | P69: 0.7943 | Q69: 0.7936 | R69: 0.7921 | S69: 0.7917 | T69: 0.7918 | U69: 0.7915 | V69: 0.7921 | W69: 0.7909 | X69: 0.7908 | Y69: 0.7908 | Z69: 0.7905 | AA69: 0.7907 | AB69: 0.7904 | AC69: 0.7904 | AD69: 0.7898 | AE69: 0.79 | AF69: 0.7899 | AG69: 0.7896 | AH69: 0.7894 | AI69: 0.7890755116 | AJ69: 0.7888489172 | AK69: 0.7882735568 | AL69: 0.7876396771 | AM69: 0.7873971745 | AN69: 0.7873589361 | AO69: 0.7877008643 | AP69: 0.7874474159 | AQ69: 0.7878848783 | AR69: 0.7870528783 | AS69: 0.7848949476 | AT69: 0.7849224181 | AU69: 0.7841823227 | AV69: 0.7839846939 | AW69: 0.7814465548 | AX69: 0.781904956 | AY69: 0.7811510626 | AZ69: 0.7819630321 | BA69: 0.7821271509 | BB69: 0.782934722 | BC69: 0.7826449754 | BD69: 0.7819937518 | BE69: 0.7819795505 | BF69: 0.781900745 | BG69: 0
A70: Weighted Average Nationwide Indexed LTV | B70: 0.7238 | C70: 0.7141 | D70: 0.7103 | E70: 0.7002 | F70: 0.6936 | G70: 0.6789 | H70: 0.6767 | I70: 0.6809 | J70: 0.7008 | K70: 0.7281 | L70: 0.7792 | M70: 0.8046 | N70: 0.8544 | O70: 0.8332 | P70: 0.8043 | Q70: 0.7897 | R70: 0.79 | S70: 0.7712 | T70: 0.7922 | U70: 0.8024 | V70: 0.7849 | W70: 0.7862 | X70: 0.7905 | Y70: 0.8105 | Z70: 0.8105 | AA70: 0.8017 | AB70: 0.8 | AC70: 0.8103 | AD70: 0.8081 | AE70: 0.7739 | AF70: 0.7722 | AG70: 0.7638 | AH70: 0.7542 | AI70: 0.716960261 | AJ70: 0.7146991961 | AK70: 0.7159227027 | AL70: 0.7172903079 | AM70: 0.6980540506 | AN70: 0.697595324 | AO70: 0.6976869284 | AP70: 0.6941784178 | AQ70: 0.6752019957 | AR70: 0.6720257444 | AS70: 0.6709544438 | AT70: 0.6716171221 | AU70: 0.6560074078 | AV70: 0.6562250413 | AW70: 0.6531301727 | AX70: 0.6369834285 | AY70: 0.6364048366 | AZ70: 0.6310607681 | BA70: 0.6408930737 | BB70: 0.6375421524 | BC70: 0.6310541238 | BD70: 0.6264322782 | BE70: 0.6317122572 | BF70: 0.6248032112 | BG70: 0
A71: Weighted Average Halifax Indexed LTV | B71: 0.7187 | C71: 0.708 | D71: 0.7075 | E71: 0.6862 | F71: 0.6742 | G71: 0.6653 | H71: 0.6646 | I71: 0.6764 | J71: 0.6967 | K71: 0.7211 | L71: 0.7712 | M71: 0.769 | N71: 0.8583 | O71: 0.8595 | P71: 0.8372 | Q71: 0.8189 | R71: 0.8184 | S71: 0.8076 | T71: 0.8159 | U71: 0.8323 | V71: 0.8514 | W71: 0.8444 | X71: 0.8383 | Y71: 0.8509 | Z71: 0.8486 | AA71: 0.85 | AB71: 0.8529 | AC71: 0.8562 | AD71: 0.8399 | AE71: 0.8168 | AF71: 0.8002 | AG71: 0.7983 | AH71: 0.7823 | AI71: 0.7566017914 | AJ71: 0.7347281084 | AK71: 0.7434792865 | AL71: 0.7219247999 | AM71: 0.6902950842 | AN71: 0.6869498504 | AO71: 0.6912843369 | AP71: 0.6684550449 | AQ71: N/A | AR71: N/A | AS71: N/A | AT71: N/A | AU71: N/A | AV71: N/A | AW71: N/A | AX71: N/A | AY71: N/A | AZ71: N/A | BA71: N/A | BB71: N/A | BC71: N/A | BD71: N/A | BE71: N/A | BF71: N/A | BG71: N/A
A72: % of Variable Rate Mortgages | B72: 0.0319 | C72: 0.0377 | D72: 0.0458 | E72: 0.0554 | F72: 0.0661 | G72: 0.0702 | H72: 0.0702 | I72: 0.0618 | J72: 0.0577 | K72: 0.057 | L72: 0.0548 | M72: 0.0075 | N72: 0.0066 | O72: 0.0052 | P72: 0.0038 | Q72: 0.0038 | R72: 0.0035 | S72: 0.0035 | T72: 0.0035 | U72: 0.0035 | V72: 0.0035 | W72: 0.0033 | X72: 0.0033 | Y72: 0.0033 | Z72: 0.0033 | AA72: 0.0027 | AB72: 0.0027 | AC72: 0.0027 | AD72: 0.0027 | AE72: 0.0027 | AF72: 0.0027 | AG72: 0.0026 | AH72: 0.0026 | AI72: 0.002601611856 | AJ72: 0.002587740961 | AK72: 0.002497185225 | AL72: 0.00250793373 | AM72: 0.002374545549 | AN72: 0.002392326946 | AO72: 0.002404107864 | AP72: 0.002407369786 | AQ72: 0.002418214684 | AR72: 0.002424627078 | AS72: 0.002428406866 | AT72: 0.00225513554 | AU72: 0.002274387196 | AV72: 0.002301684285 | AW72: 0.002282811458 | AX72: 0.002305054874 | AY72: 0.002336762563 | AZ72: 0.00239068727 | BA72: 0.00242539916 | BB72: 0.002450035671 | BC72: 0.002267905329 | BD72: 0.002280641344 | BE72: 0.002308842987 | BF72: 0.00231173682 | BG72: 0
A73: % of Fixed Rate Mortgages | B73: 0.5476 | C73: 0.5726 | D73: 0.5916 | E73: 0.6065 | F73: 0.6074 | G73: 0.6201 | H73: 0.6357 | I73: 0.5298 | J73: 0.5828 | K73: 0.5292 | L73: 0.4903 | M73: 0.4697 | N73: 0.4339 | O73: 0.3958 | P73: 0.39 | Q73: 0.3547 | R73: 0.1927 | S73: 0.192 | T73: 0.0321 | U73: 0.0289 | V73: 0.0241 | W73: 0.0176 | X73: 0.0162 | Y73: 0.0159 | Z73: 0.0159 | AA73: 0.016 | AB73: 0.0149 | AC73: 0.0149 | AD73: 0.0002 | AE73: 0 | AF73: 0 | AG73: 0 | AH73: 0 | AI73: 0 | AJ73: 0 | AK73: 0 | AL73: 0 | AM73: 0 | AN73: 0 | AO73: 0 | AP73: 0 | AQ73: 0 | AR73: 0 | AS73: 0 | AT73: 0 | AU73: 0 | AV73: 0 | AW73: 0 | AX73: 0 | AY73: 0.01670193455 | AZ73: 0.01532001063 | BA73: 0.01561184807 | BB73: 0.01584241187 | BC73: 0.01616510325 | BD73: 0.01634084119 | BE73: 0.01663095621 | BF73: 0.01676414878 | BG73: 0
A74: % of Base Rate Mortgages | B74: 0 | C74: 0 | D74: 0 | E74: 0 | F74: 0 | G74: 0 | H74: 0 | I74: 0 | J74: 0 | K74: 0 | L74: 0 | M74: 0.033 | N74: 0.0332 | O74: 0.0334 | P74: 0.0337 | Q74: 0.0332 | R74: 0.0334 | S74: 0.0338 | T74: 0.0324 | U74: 0.0326 | V74: 0.0328 | W74: 0.0327 | X74: 0.0329 | Y74: 0.0328 | Z74: 0.0323 | AA74: 0.032 | AB74: 0.0314 | AC74: 0.0314 | AD74: 0.0316 | AE74: 0.0318 | AF74: 0.032 | AG74: 0.0322 | AH74: 0.0323 | AI74: 0.03158383259 | AJ74: 0.03183375371 | AK74: 0.03134147868 | AL74: 0.03177366423 | AM74: 0.03211386415 | AN74: 0.03163648046 | AO74: 0.03201508596 | AP74: 0.03209917895 | AQ74: 0.03125939402 | AR74: 0.0315798026 | AS74: 0.03187451334 | AT74: 0.03213361573 | AU74: 0.03258729082 | AV74: 0.03282294453 | AW74: 0.03320335511 | AX74: 0.03365630944 | AY74: 0.03426812573 | AZ74: 0.03521506426 | BA74: 0.03587265309 | BB74: 0.03638889358 | BC74: 0.03711612823 | BD74: 0.03750544612 | BE74: 0.03753095229 | BF74: 0.03776019259 | BG74: 0
A75: % of Libor Linked Mortgages | B75: 0.4205 | C75: 0.3896 | D75: 0.3626 | E75: 0.3381 | F75: 0.3265 | G75: 0.3097 | H75: 0.2941 | I75: 0.4083 | J75: 0.3595 | K75: 0.4138 | L75: 0.4549 | M75: 0.4898 | N75: 0.5262 | O75: 0.5656 | P75: 0.5725 | Q75: 0.6083 | R75: 0.7704 | S75: 0.7707 | T75: 0.9319 | U75: 0.935 | V75: 0.9395 | W75: 0.9464 | X75: 0.9475 | Y75: 0.948 | Z75: 0.9485 | AA75: 0.9493 | AB75: 0.951 | AC75: 0.951 | AD75: 0.9656 | AE75: 0.9655 | AF75: 0.9653 | AG75: 0.9652 | AH75: 0.9651 | AI75: 0.9658145556 | AJ75: 0.9655785053 | AK75: 0.9661613361 | AL75: 0.965718402 | AM75: 0.9655115903 | AN75: 0.9659711926 | AO75: 0.9655808062 | AP75: 0.9654934513 | AQ75: 0.9663223913 | AR75: 0.9659955703 | AS75: 0.9656970798 | AT75: 0.9656112487 | AU75: 0.965138322 | AV75: 0.9648753712 | AW75: 0.9645138334 | AX75: 0.9640386357 | AY75: 0.9466931772 | AZ75: 0.9470742378 | BA75: 0.9460900997 | BB75: 0.9453186589 | BC75: 0.9444508632 | BD75: 0.9438730713 | BE75: 0.9435292485 | BF75: 0.9431639218 | BG75: 0
A76: Weighted Average Loan Size | B76: 123874.64 | C76: 126080.37 | D76: 127713 | E76: 129347.06 | F76: 132192.87 | G76: 133139.24 | H76: 133684.31 | I76: 134783.28 | J76: 136580.23 | K76: 136456.27 | L76: 137175.79 | M76: 137898.38 | N76: 137732.15 | O76: 138094.33 | P76: 138153.01 | Q76: 138215.06 | R76: 138409.12 | S76: 138252.03 | T76: 138445.63 | U76: 138126.48 | V76: 137134.59 | W76: 137220.05 | X76: 136797.77 | Y76: 136240.9 | Z76: 136464.94 | AA76: 136666.62 | AB76: 136735.71 | AC76: 136661.54 | AD76: 136391.36 | AE76: 136550.11 | AF76: 136485.17 | AG76: 136518.26 | AH76: 136648.8 | AI76: 136422.1259 | AJ76: 136284.0975 | AK76: 136266.6346 | AL76: 135522.9418 | AM76: 135283.9951 | AN76: 135291.4376 | AO76: 135403.6282 | AP76: 135419.1548 | AQ76: 135501.4587 | AR76: 135660.1318 | AS76: 135789.2627 | AT76: 136191.4019 | AU76: 137335.8066 | AV76: 137448.4839 | AW76: 137260.3783 | AX76: 136778.5509 | AY76: 136418.93 | AZ76: 136582.4631 | BA76: 136264.7232 | BB76: 136157.5764 | BC76: 135735.0885 | BD76: 135696.2253 | BE76: 136001.8527 | BF76: 135946.6688 | BG76: 0
A77: Weighted Average Interest Rate | B77: 0.05547 | C77: 0.05566 | D77: 0.05662 | E77: 0.05755 | F77: 0.05854 | G77: 0.05984 | H77: 0.05536 | I77: 0.06257 | J77: 0.06195 | K77: 0.06273 | L77: 0.06423 | M77: 0.04837 | N77: 0.04203 | O77: 0.03835 | P77: 0.03463 | Q77: 0.03415 | R77: 0.02931 | S77: 0.02999 | T77: 0.02529 | U77: 0.02524 | V77: 0.026 | W77: 0.02576 | X77: 0.02673 | Y77: 0.02772 | Z77: 0.02764 | AA77: 0.02582 | AB77: 0.02289 | AC77: 0.02281 | AD77: 0.02232 | AE77: 0.02232 | AF77: 0.02232 | AG77: 0.02233 | AH77: 0.02234 | AI77: 0.02236130056 | AJ77: 0.02245014367 | AK77: 0.02244807624 | AL77: 0.02244862756 | AM77: 0.0224501049 | AN77: 0.02253855594 | AO77: 0.02291156259 | AP77: 0.02296376034 | AQ77: 0.02281331753 | AR77: 0.02099673087 | AS77: 0.0209276727 | AT77: 0.02094709347 | AU77: 0.02103853706 | AV77: 0.02129001782 | AW77: 0.02323413402 | AX77: 0.02513320914 | AY77: 0.02430997199 | AZ77: 0.02603773153 | BA77: 0.02709033195 | BB77: 0.0262124981 | BC77: 0.02530861932 | BD77: 0.02531539379 | BE77: 0.02532498062 | BF77: 0.02320146945 | BG77: 0
A78: Weighted Average Maturity Date (years) | B78: 20.06 | C78: 19.78 | D78: 19.56 | E78: 19.35 | F78: 19.1 | G78: 18.93 | H78: 18.74 | I78: 18.54 | J78: 18.35 | K78: 18.13 | L78: 17.87 | M78: 17.6 | N78: 17.35 | O78: 17.12 | P78: 16.89 | Q78: 16.67 | R78: 16.42 | S78: 16.16 | T78: 15.92 | U78: 15.69 | V78: 15.43 | W78: 15.19 | X78: 14.95 | Y78: 14.75 | Z78: 14.52 | AA78: 14.31 | AB78: 14.08 | AC78: 13.83 | AD78: 13.61 | AE78: 13.38 | AF78: 13.14 | AG78: 12.9 | AH78: 12.66 | AI78: 12.42225788 | AJ78: 12.1949914 | AK78: 11.94242813 | AL78: 11.70430471 | AM78: 11.47082829 | AN78: 11.40722711 | AO78: 11.17659213 | AP78: 10.95823031 | AQ78: 10.72455224 | AR78: 10.48948415 | AS78: 10.2789194 | AT78: 10.0791291 | AU78: 9.858023222 | AV78: 9.677405447 | AW78: 9.438733664 | AX78: 9.196586336 | AY78: 9.229667351 | AZ78: 9.057854683 | BA78: 8.839081278 | BB78: 8.576394691 | BC78: 8.369221619 | BD78: 8.154802149 | BE78: 7.921352415 | BF78: 7.699898705 | BG78: 0
A79: Weighted Average Seasoning (months) | B79: 23.39 | C79: 25.92 | D79: 28.66 | E79: 31.35 | F79: 33.96 | G79: 36.58 | H79: 39.17 | I79: 42.61 | J79: 45.59 | K79: 48.68 | L79: 51.7 | M79: 54.74 | N79: 57.69 | O79: 60.72 | P79: 63.7 | Q79: 66.66 | R79: 69.63 | S79: 72.75 | T79: 75.73 | U79: 78.65 | V79: 81.8 | W79: 84.77 | X79: 87.83 | Y79: 90.75 | Z79: 93.71 | AA79: 96.69 | AB79: 99.71 | AC79: 102.67 | AD79: 105.66 | AE79: 108.7 | AF79: 111.72 | AG79: 114.66 | AH79: 117.63 | AI79: 120.6180034 | AJ79: 123.6710868 | AK79: 126.6534898 | AL79: 129.4545985 | AM79: 132.5277123 | AN79: 135.5808669 | AO79: 138.5008045 | AP79: 141.5427011 | AQ79: 144.456523 | AR79: 147.4099793 | AS79: 150.3333382 | AT79: 153.401187 | AU79: 156.4807705 | AV79: 159.6400524 | AW79: 162.5016532 | AX79: 165.4720901 | AY79: 168.587489 | AZ79: 171.6711505 | BA79: 174.4915417 | BB79: 177.4473972 | BC79: 180.4284566 | BD79: 183.4190935 | BE79: 186.2744062 | BF79: 189.2206302 | BG79: 0
A80: % of Interest Only Mortgages | B80: 0.8966 | C80: 0.8966 | D80: 0.8999 | E80: 0.9027 | F80: 0.9032 | G80: 0.9111 | H80: 0.9134 | I80: 0.9131 | J80: 0.9183 | K80: 0.9223 | L80: 0.922 | M80: 0.9305 | N80: 0.9335 | O80: 0.9347 | P80: 0.9325 | Q80: 0.9332 | R80: 0.9354 | S80: 0.9373 | T80: 0.9365 | U80: 0.9373 | V80: 0.938 | W80: 0.9391 | X80: 0.9401 | Y80: 0.9414 | Z80: 0.9435 | AA80: 0.9442 | AB80: 0.9453 | AC80: 0.9461 | AD80: 0.9464 | AE80: 0.9473 | AF80: 0.9486 | AG80: 0.9496 | AH80: 0.951 | AI80: 0.9520780975 | AJ80: 0.9523967127 | AK80: 0.9531685492 | AL80: 0.9536843994 | AM80: 0.9545119206 | AN80: 0.9555916418 | AO80: 0.9590670559 | AP80: 0.9597529911 | AQ80: 0.9617413088 | AR80: 0.9626190377 | AS80: 0.963645454 | AT80: 0.9645913676 | AU80: 0.9650584083 | AV80: 0.96554345 | AW80: 0.9661004791 | AX80: 0.9673412995 | AY80: 0.9677255638 | AZ80: 0.9689699933 | BA80: 0.9696518898 | BB80: 0.9715853555 | BC80: 0.9721300422 | BD80: 0.9725972695 | BE80: 0.9734150224 | BF80: 0.9755427847 | BG80: 0
A81: % of Repayment Mortgages | B81: 0.1034 | C81: 0.1034 | D81: 0.1001 | E81: 0.0973 | F81: 0.0968 | G81: 0.0889 | H81: 0.0866 | I81: 0.0869 | J81: 0.0817 | K81: 0.0777 | L81: 0.078 | M81: 0.0695 | N81: 0.0665 | O81: 0.0653 | P81: 0.0675 | Q81: 0.0668 | R81: 0.0646 | S81: 0.0627 | T81: 0.0635 | U81: 0.0627 | V81: 0.062 | W81: 0.0609 | X81: 0.0599 | Y81: 0.0586 | Z81: 0.0565 | AA81: 0.0558 | AB81: 0.0547 | AC81: 0.0539 | AD81: 0.0536 | AE81: 0.0527 | AF81: 0.0514 | AG81: 0.0504 | AH81: 0.049 | AI81: 0.04792190254 | AJ81: 0.04760328726 | AK81: 0.04683145084 | AL81: 0.04631560059 | AM81: 0.04548807937 | AN81: 0.04440835815 | AO81: 0.04093294413 | AP81: 0.04024700889 | AQ81: 0.03825869123 | AR81: 0.03738096234 | AS81: 0.03635454603 | AT81: 0.03540863243 | AU81: 0.03494159174 | AV81: 0.03445655002 | AW81: 0.03389952087 | AX81: 0.03265870049 | AY81: 0.0322744362 | AZ81: 0.03103000669 | BA81: 0.03034811022 | BB81: 0.02841464446 | BC81: 0.02786995781 | BD81: 0.02740273048 | BE81: 0.0265849776 | BF81: 0.0244572153 | BG81: 0
A82: % of Mortgages in London | B82: 0.1323 | C82: 0.1279 | D82: 0.1248 | E82: 0.1252 | F82: 0.1235 | G82: 0.1204 | H82: 0.1185 | I82: 0.1128 | J82: 0.1128 | K82: 0.1078 | L82: 0.1085 | M82: 0.1067 | N82: 0.1067 | O82: 0.106 | P82: 0.1059 | Q82: 0.1063 | R82: 0.1042 | S82: 0.1033 | T82: 0.1012 | U82: 0.0984 | V82: 0.091 | W82: 0.0913 | X82: 0.0898 | Y82: 0.0894 | Z82: 0.0893 | AA82: 0.0894 | AB82: 0.0899 | AC82: 0.09 | AD82: 0.0903 | AE82: 0.0874 | AF82: 0.0869 | AG82: 0.0878 | AH82: 0.0867 | AI82: 0.0852958827 | AJ82: 0.08393405321 | AK82: 0.08437418418 | AL82: 0.08487554041 | AM82: 0.08558774132 | AN82: 0.08675189911 | AO82: 0.0872189713 | AP82: 0.087022888 | AQ82: 0.0863370644 | AR82: 0.08645173811 | AS82: 0.08483030833 | AT82: 0.0845354942 | AU82: 0.08489503294 | AV82: 0.086075754 | AW82: 0.08640606288 | AX82: 0.08758974498 | AY82: 0.08695972819 | AZ82: 0.08785403061 | BA82: 0.08676258337 | BB82: 0.08780184207 | BC82: 0.08488763815 | BD82: 0.08567048104 | BE82: 0.08183856791 | BF82: 0.08218899769 | BG82: 0
A83: % of Mortgages in the South East | B83: 0.2339 | C83: 0.2295 | D83: 0.2285 | E83: 0.2272 | F83: 0.2284 | G83: 0.2295 | H83: 0.2235 | I83: 0.2216 | J83: 0.2212 | K83: 0.2215 | L83: 0.2224 | M83: 0.2223 | N83: 0.2228 | O83: 0.2228 | P83: 0.2219 | Q83: 0.2226 | R83: 0.2232 | S83: 0.2223 | T83: 0.2229 | U83: 0.2229 | V83: 0.2255 | W83: 0.2248 | X83: 0.2263 | Y83: 0.226 | Z83: 0.2258 | AA83: 0.2263 | AB83: 0.227 | AC83: 0.2273 | AD83: 0.2271 | AE83: 0.228 | AF83: 0.2293 | AG83: 0.2287 | AH83: 0.2288 | AI83: 0.227758199 | AJ83: 0.2285046135 | AK83: 0.2279258502 | AL83: 0.227577375 | AM83: 0.227700578 | AN83: 0.2254469294 | AO83: 0.2240899593 | AP83: 0.2248126169 | AQ83: 0.2256823381 | AR83: 0.2252772473 | AS83: 0.2258255375 | AT83: 0.2270057216 | AU83: 0.2285791015 | AV83: 0.2255160518 | AW83: 0.2241973666 | AX83: 0.2247061788 | AY83: 0.2243121751 | AZ83: 0.2292975894 | BA83: 0.227753572 | BB83: 0.2283822703 | BC83: 0.2265025127 | BD83: 0.2268631235 | BE83: 0.2288604728 | BF83: 0.2284604772 | BG83: 0
A84: % of Owner Occupied Mortgages | B84: 0 | C84: 0 | D84: 0 | E84: 0 | F84: 0 | G84: 0 | H84: 0 | I84: 0 | J84: 0 | K84: 0 | L84: 0 | M84: 0 | N84: 0 | O84: 0 | P84: 0 | Q84: 0 | R84: 0 | S84: 0 | T84: 0 | U84: 0 | V84: 0 | W84: 0 | X84: 0 | Y84: 0 | Z84: 0 | AA84: 0 | AB84: 0 | AC84: 0 | AD84: 0 | AE84: 0 | AF84: 0 | AG84: 0 | AH84: 0 | AI84: 0 | AJ84: 0 | AK84: 0 | AL84: 0 | AM84: 0 | AN84: 0 | AO84: 0 | AP84: 0 | AQ84: 0 | AR84: 0 | AS84: 0 | AT84: 0 | AU84: 0 | AV84: 0 | AW84: 0 | AX84: 0 | AY84: 0 | AZ84: 0 | BA84: 0 | BB84: 0 | BC84: 0 | BD84: 0 | BE84: 0 | BF84: 0 | BG84: 0
A85: % of Investment Home Loans - Professional Landlords | B85: 0.937 | C85: 0.9367 | D85: 0.9399 | E85: 0.9422 | F85: 0.9426 | G85: 0.9439 | H85: 0.9473 | I85: 0.9477 | J85: 0.9515 | K85: 0.9548 | L85: 0.9555 | M85: 0.9567 | N85: 0.956 | O85: 0.9566 | P85: 0.9572 | Q85: 0.957 | R85: 0.9569 | S85: 0.9575 | T85: 0.9575 | U85: 0.9572 | V85: 0.9567 | W85: 0.9568 | X85: 0.9571 | Y85: 0.9577 | Z85: 0.9579 | AA85: 0.9581 | AB85: 0.9581 | AC85: 0.9582 | AD85: 0.9587 | AE85: 0.9592 | AF85: 0.9591 | AG85: 0.9592 | AH85: 0.9593 | AI85: 0.9592162705 | AJ85: 0.9605873263 | AK85: 0.9605828589 | AL85: 0.9604608372 | AM85: 0.9612323826 | AN85: 0.9622670262 | AO85: 0.9628692959 | AP85: 0.9627046545 | AQ85: 0.9525126638 | AR85: 0.963869179 | AS85: 0.9636923645 | AT85: 0.9635618101 | AU85: 0.9649319167 | AV85: 0.9651755131 | AW85: 0.9649541067 | AX85: 0.964595374 | AY85: 0.9648263234 | AZ85: 0.9643892058 | BA85: 0.9646076626 | BB85: 0.9647481156 | BC85: 0.9643985137 | BD85: 0.9641648263 | BE85: 0.9657153048 | BF85: 0.9673472865 | BG85: 0
A86: % of Investment Home Loans - Emerging Professional Landlords | B86: 0.063 | C86: 0.0633 | D86: 0.0601 | E86: 0.0578 | F86: 0.0574 | G86: 0.0561 | H86: 0.0527 | I86: 0.0523 | J86: 0.0485 | K86: 0.0452 | L86: 0.0445 | M86: 0.0433 | N86: 0.044 | O86: 0.0434 | P86: 0.0428 | Q86: 0.043 | R86: 0.0431 | S86: 0.0425 | T86: 0.0425 | U86: 0.0428 | V86: 0.0433 | W86: 0.0432 | X86: 0.0429 | Y86: 0.0423 | Z86: 0.0421 | AA86: 0.0419 | AB86: 0.0419 | AC86: 0.0418 | AD86: 0.0413 | AE86: 0.0408 | AF86: 0.0409 | AG86: 0.0408 | AH86: 0.0407 | AI86: 0.04078372952 | AJ86: 0.03941267372 | AK86: 0.03941714113 | AL86: 0.03953916276 | AM86: 0.03876761736 | AN86: 0.03773297381 | AO86: 0.03713070413 | AP86: 0.03729534555 | AQ86: 0.04748733622 | AR86: 0.036130821 | AS86: 0.03630763552 | AT86: 0.03643818987 | AU86: 0.03506808327 | AV86: 0.03482448686 | AW86: 0.03504589332 | AX86: 0.03540462597 | AY86: 0.03517367661 | AZ86: 0.03561079416 | BA86: 0.03539233738 | BB86: 0.03525188437 | BC86: 0.03560148633 | BD86: 0.03583517372 | BE86: 0.03428469521 | BF86: 0.03265271352 | BG86: 0
A87: Weighted Average Interest Coverage Ratio (calculated at the origination date) | B87: 1.89 | C87: 1.89 | D87: 1.88 | E87: 1.88 | F87: 1.89 | G87: 1.86 | H87: 1.86 | I87: 1.87 | J87: 1.88 | K87: 1.89 | L87: 1.89 | M87: 1.89 | N87: 1.89 | O87: 1.89 | P87: 1.89 | Q87: 1.89 | R87: 1.9 | S87: 1.9 | T87: 1.89 | U87: 1.89 | V87: 1.89 | W87: 1.88 | X87: 1.87 | Y87: 1.86 | Z87: 1.86 | AA87: 1.86 | AB87: 1.86 | AC87: 1.86 | AD87: 1.86 | AE87: 1.86 | AF87: 1.86 | AG87: 1.85 | AH87: 1.85 | AI87: 1.850243167 | AJ87: 1.851743594 | AK87: 1.852518469 | AL87: 1.853699678 | AM87: 1.853844951 | AN87: 1.857043186 | AO87: 1.852914961 | AP87: 1.853146907 | AQ87: 1.855042854 | AR87: 1.856145272 | AS87: 1.854644547 | AT87: 1.855693181 | AU87: 1.857539956 | AV87: 1.85692141 | AW87: 1.857148323 | AX87: 1.815231076 | AY87: 1.816929236 | AZ87: 1.806395766 | BA87: 1.802979668 | BB87: 1.803410588 | BC87: 1.806123497 | BD87: 1.803709349 | BE87: 1.800749371 | BF87: 1.800834643 | BG87: 0
A88: PML Lifetime Redemption Rate | B88: 0.1599 | C88: 0.172 | D88: 0.1572 | E88: 0.146 | F88: 0.1425 | G88: 0.141 | H88: 0.1454 | I88: 0.164 | J88: 0.1659 | K88: 0.1612 | L88: 0.1545 | M88: 0.1457 | N88: 0.1372 | O88: 0.13 | P88: 0.1234 | Q88: 0.117 | R88: 0.112 | S88: 0.1089 | T88: 0.1048 | U88: 0.1011 | V88: 0.0991 | W88: 0.0956 | X88: 0.0929 | Y88: 0.0907 | Z88: 0.0878 | AA88: 0.0855 | AB88: 0.0833 | AC88: 0.0808 | AD88: 0.0788 | AE88: 0.0773 | AF88: 0.0758 | AG88: 0.0743 | AH88: 0.0726 | AI88: 0.0713 | AJ88: 0.0703 | AK88: 0.0691 | AL88: 0.0687 | AM88: 0.0681 | AN88: 0.0679 | AO88: 0.0674 | AP88: 0.0667 | AQ88: 0.0662 | AR88: 0.0658 | AS88: 0.0654 | AT88: 0.0648 | AU88: 0.0648 | AV88: 0.0648 | AW88: 0.0643 | AX88: 0.0643 | AY88: 0.0645 | AZ88: 0.0653 | BA88: 0.0654 | BB88: 0.0653 | BC88: 0.0655 | BD88: 0.0651 | BE88: 0.0651 | BF88: 0.0645 | BG88: 1
A89: Number of Properties in Possession | B89: 0 | C89: 0 | D89: 0 | E89: 0 | F89: 0 | G89: 0 | H89: 0 | I89: 0 | J89: 0 | K89: 0 | L89: 0 | M89: 0 | N89: 0 | O89: 0 | P89: 0 | Q89: 0 | R89: 0 | S89: 0 | T89: 0 | U89: 0 | V89: 0 | W89: 0 | X89: 0 | Y89: 1 | Z89: 1 | AA89: 1 | AB89: 1 | AC89: 1 | AD89: 1 | AE89: 1 | AF89: 0 | AG89: 0 | AH89: 0 | AI89: 0 | AJ89: 0 | AK89: 0 | AL89: 0 | AM89: 0 | AN89: 0 | AO89: 0 | AP89: 0 | AQ89: 0 | AR89: 0 | AS89: 0 | AT89: 0 | AU89: 0 | AV89: 0 | AW89: 0 | AX89: 0 | AY89: 0 | AZ89: 0 | BA89: 0 | BB89: 0 | BC89: 0 | BD89: 0 | BE89: 0 | BF89: 0 | BG89: 0
A90: Appointment of a Receiver of Rent | B90: 2 | C90: 5 | D90: 5 | E90: 7 | F90: 6 | G90: 4 | H90: 6 | I90: 7 | J90: 48 | K90: 52 | L90: 63 | M90: 74 | N90: 79 | O90: 98 | P90: 107 | Q90: 68 | R90: 64 | S90: 58 | T90: 53 | U90: 58 | V90: 55 | W90: 49 | X90: 53 | Y90: 51 | Z90: 53 | AA90: 46 | AB90: 42 | AC90: 41 | AD90: 42 | AE90: 38 | AF90: 35 | AG90: 35 | AH90: 33 | AI90: 31 | AJ90: 28 | AK90: 26 | AL90: 25 | AM90: 25 | AN90: 25 | AO90: 23 | AP90: 21 | AQ90: 17 | AR90: 16 | AS90: 14 | AT90: 12 | AU90: 11 | AV90: 11 | AW90: 10 | AX90: 9 | AY90: 7 | AZ90: 7 | BA90: 7 | BB90: 6 | BC90: 7 | BD90: 6 | BE90: 6 | BF90: 6 | BG90: 0
A91: PML Losses | B91: 0 | C91: 0 | D91: 0 | E91: 0 | F91: 14 | G91: 0 | H91: 0 | I91: 0 | J91: 0 | K91: 50 | L91: 1 | M91: 18 | N91: 227 | O91: 0 | P91: 202 | Q91: 274 | R91: 26 | S91: 90 | T91: 104 | U91: 10 | V91: 303 | W91: -10 | X91: 190 | Y91: 119 | Z91: 139 | AA91: 3 | AB91: 174 | AC91: 23 | AD91: 242 | AE91: 219 | AF91: 228 | AG91: -28 | AH91: 76 | AI91: 18 | AJ91: 344 | AK91: 123 | AL91: 131 | AM91: -3 | AN91: -2 | AO91: 32 | AP91: 169 | AQ91: 160 | AR91: -22 | AS91: 146 | AT91: 7 | AU91: 173 | AV91: -3 | AW91: 361 | AX91: 385 | AY91: 94 | AZ91: 1 | BA91: 0 | BB91: 351 | BC91: -15 | BD91: 0 | BE91: -1 | BF91: 0 | BG91: 0
A92: Arrears excluding Receiver of Rent and Possession Cases
A93: Performing Loans | B93: 0.9961 | C93: 0.9943 | D93: 0.9971 | E93: 0.9943 | F93: 0.9939 | G93: 0.9871 | H93: 0.9841 | I93: 0.9756 | J93: 0.987 | K93: 0.9853 | L93: 0.9669 | M93: 0.9703 | N93: 0.9692 | O93: 0.964 | P93: 0.9686 | Q93: 0.9791 | R93: 0.9885 | S93: 0.977 | T93: 0.9781 | U93: 0.9876 | V93: 0.9874 | W93: 0.9889 | X93: 0.9863 | Y93: 0.9883 | Z93: 0.9874 | AA93: 0.9869 | AB93: 0.9913 | AC93: 0.9948 | AD93: 0.9956 | AE93: 0.9987 | AF93: 0.9987 | AG93: 0.9984 | AH93: 0.9985 | AI93: 0.9979025033 | AJ93: 0.9984460282 | AK93: 0.9980931867 | AL93: 0.9942584414 | AM93: 0.997850333 | AN93: 0.9986509511 | AO93: 1 | AP93: 1 | AQ93: 0.9997480683 | AR93: 0.999750325 | AS93: 1 | AT93: 1 | AU93: 0.9987670617 | AV93: 0.9989355478 | AW93: 1 | AX93: 0.9990775122 | AY93: 0.9993580748 | AZ93: 0.9983214934 | BA93: 0.9902354251 | BB93: 0.9919365315 | BC93: 0.997179359 | BD93: 0.994607846 | BE93: 0.9813930365 | BF93: 0.9827792959 | BG93: 0
A94: >1 to 2 months arrears | B94: 0.0037 | C94: 0.0027 | D94: 0.0016 | E94: 0.0038 | F94: 0.0035 | G94: 0.0129 | H94: 0.0145 | I94: 0.0039 | J94: 0.0119 | K94: 0.0063 | L94: 0.0215 | M94: 0.017 | N94: 0.0212 | O94: 0.0296 | P94: 0.0257 | Q94: 0.0166 | R94: 0.0103 | S94: 0.0225 | T94: 0.0188 | U94: 0.0112 | V94: 0.0098 | W94: 0.0067 | X94: 0.0123 | Y94: 0.0096 | Z94: 0.0109 | AA94: 0.0109 | AB94: 0.0063 | AC94: 0.0039 | AD94: 0.003 | AE94: 0 | AF94: 0 | AG94: 0 | AH94: 0.0003 | AI94: 0.0002671479597 | AJ94: 0.0002649791052 | AK94: 0.0003473391293 | AL94: 0.00442774058 | AM94: 0.0008208197369 | AN94: 0 | AO94: 0 | AP94: 0 | AQ94: 0.0002519316536 | AR94: 0.0002496750226 | AS94: 0 | AT94: 0 | AU94: 0.00123293827 | AV94: 0.001064452202 | AW94: 0 | AX94: 0.0009224877507 | AY94: 0 | AZ94: 0.001678506601 | BA94: 0.008776461031 | BB94: 0.004016464736 | BC94: 0.001802126956 | BD94: 0.004363120822 | BE94: 0.01470243605 | BF94: 0.01617149222 | BG94: 0
A95: >2 to 3 months arrears | B95: 0.0002 | C95: 0.003 | D95: 0.0012 | E95: 0.0017 | F95: 0.0026 | G95: 0 | H95: 0.0009 | I95: 0.0201 | J95: 0.0004 | K95: 0.0043 | L95: 0.0071 | M95: 0.009 | N95: 0.0041 | O95: 0.0046 | P95: 0.004 | Q95: 0.0037 | R95: 0.0008 | S95: 0 | T95: 0.0019 | U95: 0 | V95: 0.0017 | W95: 0.0032 | X95: 0 | Y95: 0.0009 | Z95: 0.0004 | AA95: 0.0009 | AB95: 0.0003 | AC95: 0 | AD95: 0.0002 | AE95: 0 | AF95: 0 | AG95: 0 | AH95: 0 | AI95: 0.0005490992223 | AJ95: 0 | AK95: 0.0002633160809 | AL95: 0 | AM95: 0 | AN95: 0.001349048898 | AO95: 0 | AP95: 0 | AQ95: 0 | AR95: 0 | AS95: 0 | AT95: 0 | AU95: 0 | AV95: 0 | AW95: 0 | AX95: 0 | AY95: 0.0006419251991 | AZ95: 0 | BA95: 0.0009881139004 | BB95: 0.003716418013 | BC95: 0 | BD95: 0 | BE95: 0.002857088714 | BF95: 0 | BG95: 0
A96: >3 months arrears | B96: 0 | C96: 0 | D96: 0.0001 | E96: 0.0002 | F96: 0 | G96: 0 | H96: 0.0005 | I96: 0.0004 | J96: 0.0007 | K96: 0.0041 | L96: 0.0045 | M96: 0.0037 | N96: 0.0055 | O96: 0.0018 | P96: 0.0017 | Q96: 0.0006 | R96: 0.0004 | S96: 0.0005 | T96: 0.0012 | U96: 0.0012 | V96: 0.0011 | W96: 0.0012 | X96: 0.0014 | Y96: 0.0012 | Z96: 0.0013 | AA96: 0.0013 | AB96: 0.0021 | AC96: 0.0013 | AD96: 0.0012 | AE96: 0.0013 | AF96: 0.0013 | AG96: 0.0016 | AH96: 0.0012 | AI96: 0.001281249474 | AJ96: 0.00128899271 | AK96: 0.00129615806 | AL96: 0.001313818051 | AM96: 0.001328847261 | AN96: 0 | AO96: 0 | AP96: 0 | AQ96: 0 | AR96: 0 | AS96: 0 | AT96: 0 | AU96: 0 | AV96: 0 | AW96: 0 | AX96: 0 | AY96: 0 | AZ96: 0 | BA96: 0 | BB96: 0.0003305857462 | BC96: 0.001018514039 | BD96: 0.00102903315 | BE96: 0.001047438706 | BF96: 0.001049211847 | BG96: 0
A97: Total | B97: =SUM(B93:B96) -> 1 | C97: 1 | D97: 1 | E97: 1 | F97: 1 | G97: 1 | H97: 1 | I97: 1 | J97: 1 | K97: 1 | L97: 1 | M97: 1 | N97: 1 | O97: 1 | P97: 1 | Q97: 1 | R97: 1 | S97: 1 | T97: 1 | U97: 1 | V97: 1 | W97: 1 | X97: =SUM(X93:X96) -> 1 | Y97: 1 | Z97: 1 | AA97: 1 | AB97: 1 | AC97: 1 | AD97: =SUM(AD93:AD96) -> 1 | AE97: 1 | AF97: 1 | AG97: 1 | AH97: 1 | AI97: 1 | AJ97: 1 | AK97: 1 | AL97: 1 | AM97: 1 | AN97: 1 | AO97: 1 | AP97: 1 | AQ97: 1 | AR97: 1 | AS97: 1 | AT97: 1 | AU97: 1 | AV97: 1 | AW97: 1 | AX97: 1 | AY97: 1 | AZ97: 1 | BA97: 1 | BB97: 1 | BC97: 1 | BD97: 1 | BE97: 1 | BF97: 1 | BG97: =SUM(BG93:BG96) -> 0
A99: Underlying Assets - Mortgage Trust Originated Assets | B99: 2006-06-30 | C99: 2006-09-29 | D99: 2006-12-29 | E99: 2007-03-30 | F99: 2007-06-29 | G99: 2007-09-28 | H99: 2007-12-31 | I99: 2008-03-31 | J99: 2008-06-30 | K99: 2008-09-30 | L99: 2008-12-31 | M99: 2009-03-31 | N99: 2009-06-30 | O99: 2009-09-30 | P99: 2009-12-31 | Q99: 2010-03-31 | R99: 2010-06-30 | S99: 2010-09-30 | T99: 2010-12-31 | U99: 2011-03-31 | V99: 2011-06-30 | W99: 2011-09-30 | X99: 2011-12-30 | Y99: 2012-03-30 | Z99: 2012-06-29 | AA99: 2012-09-28 | AB99: 2012-12-31 | AC99: 2013-03-28 | AD99: 2013-06-28 | AE99: 2013-09-30 | AF99: 2013-12-31 | AG99: 2014-03-31 | AH99: 2014-06-30 | AI99: 2014-09-30 | AJ99: 2014-12-31 | AK99: 2015-03-31 | AL99: 2015-06-30 | AM99: =+AM68 -> 2015-09-30 | AN99: 2015-12-31 | AO99: 2016-03-31 | AP99: 2016-06-30 | AQ99: 2016-09-30 | AR99: 2016-12-30 | AS99: =+AS68 -> 2017-03-31 | AT99: 2017-06-30 | AU99: =+AU68 -> 2017-09-29 | AV99: 2017-12-29 | AW99: =+AW68 -> 2018-03-29 | AX99: 2018-06-29 | AY99: =+AY68 -> 2018-09-28 | AZ99: 2018-12-31 | BA99: =+BA68 -> 2019-03-29 | BB99: 2019-06-28 | BC99: =+BC68 -> 2019-09-30 | BD99: 2019-12-31 | BE99: =+BE68 -> 2020-03-31 | BF99: 2020-06-30 | BG99: =+BG68 -> 2020-09-30
A100: Weighted Average LTV | B100: 0.8142 | C100: 0.8148 | D100: 0.8146 | E100: 0.8148 | F100: 0.8145 | G100: 0.8138 | H100: 0.8136 | I100: 0.8173 | J100: 0.8195 | K100: 0.8196 | L100: 0.8193 | M100: 0.8189 | N100: 0.8188 | O100: 0.8187 | P100: 0.8185 | Q100: 0.8183 | R100: 0.8183 | S100: 0.8177 | T100: 0.8176 | U100: 0.8171 | V100: 0.817 | W100: 0.8172 | X100: 0.8169 | Y100: 0.8165 | Z100: 0.8164 | AA100: 0.8164 | AB100: 0.8162 | AC100: 0.8157 | AD100: 0.8153 | AE100: 0.815 | AF100: 0.8152 | AG100: 0.8138 | AH100: 0.8128 | AI100: 0.8122784349 | AJ100: 0.8117419438 | AK100: 0.8120321762 | AL100: 0.811573826 | AM100: 0.8106901819 | AN100: 0.810562007 | AO100: 0.8093786154 | AP100: 0.808237345 | AQ100: 0.8081503994 | AR100: 0.8075697882 | AS100: 0.8080789968 | AT100: 0.8077343204 | AU100: 0.8068767087 | AV100: 0.8064477506 | AW100: 0.8069700702 | AX100: 0.8060060828 | AY100: 0.8061257707 | AZ100: 0.8053811066 | BA100: 0.8049154326 | BB100: 0.804102021 | BC100: 0.8037496478 | BD100: 0.8029422508 | BE100: 0.8022958653 | BF100: 0.8031331167 | BG100: 0
A101: Weighted Average Nationwide Indexed LTV | B101: 0.8044 | C101: 0.7855 | D101: 0.7728 | E101: 0.756 | F101: 0.7397 | G101: 0.7152 | H101: 0.7056 | I101: 0.7128 | J101: 0.7317 | K101: 0.7596 | L101: 0.8239 | M101: 0.8425 | N101: 0.8909 | O101: 0.86 | P101: 0.8276 | Q101: 0.8068 | R101: 0.8072 | S101: 0.7826 | T101: 0.8052 | U101: 0.8052 | V101: 0.7869 | W101: 0.7879 | X101: 0.7906 | Y101: 0.8054 | Z101: 0.8067 | AA101: 0.7945 | AB101: 0.7934 | AC101: 0.8004 | AD101: 0.7992 | AE101: 0.7617 | AF101: 0.7613 | AG101: 0.7447 | AH101: 0.7307 | AI101: 0.6878744662 | AJ101: 0.6881424356 | AK101: 0.6884206262 | AL101: 0.6894645889 | AM101: 0.6695744724 | AN101: 0.6642090166 | AO101: 0.6613433751 | AP101: 0.6565407784 | AQ101: 0.636635571 | AR101: 0.6304565453 | AS101: 0.6274079835 | AT101: 0.627656903 | AU101: 0.6139283291 | AV101: 0.6151604521 | AW101: 0.6130101038 | AX101: 0.6049750636 | AY101: 0.6054560804 | AZ101: 0.6024106257 | BA101: 0.6120877149 | BB101: 0.6127000069 | BC101: 0.6045058586 | BD101: 0.6006168909 | BE101: 0.6065852908 | BF101: 0.6000484964 | BG101: 0
A102: Weighted Average Halifax Indexed LTV | B102: 0.8015 | C102: 0.7818 | D102: 0.772 | E102: 0.7421 | F102: 0.72 | G102: 0.6988 | H102: 0.6899 | I102: 0.7121 | J102: 0.7284 | K102: 0.752 | L102: 0.8059 | M102: 0.8593 | N102: 0.8978 | O102: 0.8921 | P102: 0.8649 | Q102: 0.8418 | R102: 0.8372 | S102: 0.8241 | T102: 0.8371 | U102: 0.8456 | V102: 0.8573 | W102: 0.8518 | X102: 0.8461 | Y102: 0.8437 | Z102: 0.8499 | AA102: 0.8468 | AB102: 0.8477 | AC102: 0.8499 | AD102: 0.8338 | AE102: 0.8104 | AF102: 0.7951 | AG102: 0.7887 | AH102: 0.77 | AI102: 0.7418298298 | AJ102: 0.7158989091 | AK102: 0.7213624569 | AL102: 0.7058211308 | AM102: 0.6734228007 | AN102: 0.663926533 | AO102: 0.6641912897 | AP102: 0.6387338173 | AQ102: N/A | AR102: N/A | AS102: N/A | AT102: N/A | AU102: N/A | AV102: N/A | AW102: N/A | AX102: N/A | AY102: N/A | AZ102: N/A | BA102: N/A | BB102: N/A | BC102: N/A | BD102: N/A | BE102: N/A | BF102: N/A | BG102: N/A
A103: % of Variable Rate Mortgages | B103: 0 | C103: 0.0002 | D103: 0.0002 | E103: 0.0018 | F103: 0.0026 | G103: 0.0029 | H103: 0.0021 | I103: 0.0026 | J103: 0.0029 | K103: 0.003 | L103: 0.003 | M103: 0 | N103: 0 | O103: 0 | P103: 0 | Q103: 0 | R103: 0 | S103: 0 | T103: 0 | U103: 0 | V103: 0 | W103: 0 | X103: 0 | Y103: 0 | Z103: 0 | AA103: 0 | AB103: 0 | AC103: 0 | AD103: 0 | AE103: 0 | AF103: 0 | AG103: 0 | AH103: 0 | AI103: 0 | AJ103: 0 | AK103: 0 | AL103: 0 | AM103: 0 | AN103: 0 | AO103: 0 | AP103: 0 | AQ103: 0 | AR103: 0 | AS103: 0 | AT103: 0 | AU103: 0 | AV103: 0 | AW103: 0 | AX103: 0 | AY103: 0 | AZ103: 0 | BA103: 0 | BB103: 0 | BC103: 0 | BD103: 0 | BE103: 0 | BF103: 0 | BG103: 0
A104: % of Fixed Rate Mortgages | B104: 0.9656 | C104: 0.9592 | D104: 0.9404 | E104: 0.9134 | F104: 0.9139 | G104: 0.9176 | H104: 0.887 | I104: 0.6813 | J104: 0.7703 | K104: 0.7644 | L104: 0.7602 | M104: 0.2378 | N104: 0.2418 | O104: 0.2441 | P104: 0.2454 | Q104: 0.2149 | R104: 0.1023 | S104: 0.1028 | T104: 0.1005 | U104: 0.0236 | V104: 0.0071 | W104: 0.0047 | X104: 0.0048 | Y104: 0.0039 | Z104: 0.003 | AA104: 0.003 | AB104: 0.0026 | AC104: 0.0026 | AD104: 0 | AE104: 0 | AF104: 0 | AG104: 0 | AH104: 0 | AI104: 0 | AJ104: 0 | AK104: 0 | AL104: 0 | AM104: 0 | AN104: 0 | AO104: 0 | AP104: 0 | AQ104: 0 | AR104: 0 | AS104: 0 | AT104: 0 | AU104: 0 | AV104: 0 | AW104: 0 | AX104: 0 | AY104: 0 | AZ104: 0 | BA104: 0 | BB104: 0 | BC104: 0 | BD104: 0 | BE104: 0 | BF104: 0 | BG104: 0
A105: % of Base Rate Mortgages | B105: 0 | C105: 0 | D105: 0 | E105: 0 | F105: 0 | G105: 0 | H105: 0 | I105: 0 | J105: 0 | K105: 0 | L105: 0 | M105: 0.0035 | N105: 0.0035 | O105: 0.0036 | P105: 0.0036 | Q105: 0.0036 | R105: 0.0036 | S105: 0.0037 | T105: 0.0037 | U105: 0.0037 | V105: 0.0037 | W105: 0.0037 | X105: 0.0038 | Y105: 0.0038 | Z105: 0.0032 | AA105: 0.0032 | AB105: 0.0033 | AC105: 0.0033 | AD105: 0.0033 | AE105: 0.0033 | AF105: 0.0033 | AG105: 0.0033 | AH105: 0.0033 | AI105: 0.003389865345 | AJ105: 0.00307580787 | AK105: 0.003109495717 | AL105: 0.003155485287 | AM105: 0.003183743073 | AN105: 0.002220082852 | AO105: 0.00227896739 | AP105: 0.00231798122 | AQ105: 0.002356886605 | AR105: 0.002417825956 | AS105: 0.002471461991 | AT105: 0.002514706724 | AU105: 0.00256436456 | AV105: 0.002620096796 | AW105: 0.002663117063 | AX105: 0.002704549406 | AY105: 0.002755302332 | AZ105: 0.002799175652 | BA105: 0.002857321059 | BB105: 0.00293418302 | BC105: 0.003001973822 | BD105: 0.003067936413 | BE105: 0.003145142306 | BF105: 0.003216046403 | BG105: 0
A106: % of Libor Linked Mortgages | B106: 0.0344 | C106: 0.0407 | D106: 0.0594 | E106: 0.0847 | F106: 0.0834 | G106: 0.0795 | H106: 0.1109 | I106: 0.3161 | J106: 0.2268 | K106: 0.2327 | L106: 0.2368 | M106: 0.7587 | N106: 0.7546 | O106: 0.7523 | P106: 0.751 | Q106: 0.7815 | R106: 0.8941 | S106: 0.8935 | T106: 0.8958 | U106: 0.9727 | V106: 0.9892 | W106: 0.9915 | X106: 0.9915 | Y106: 0.9923 | Z106: 0.9938 | AA106: 0.9938 | AB106: 0.9941 | AC106: 0.9941 | AD106: 0.9967 | AE106: 0.9967 | AF106: 0.9967 | AG106: 0.9967 | AH106: 0.9967 | AI106: 0.9966101347 | AJ106: 0.9969241921 | AK106: 0.9968905043 | AL106: 0.9968445147 | AM106: 0.9968162569 | AN106: 0.9977799171 | AO106: 0.9977210326 | AP106: 0.9976820188 | AQ106: 0.9976431134 | AR106: 0.997582174 | AS106: 0.997528538 | AT106: 0.9974852933 | AU106: 0.9974356354 | AV106: 0.9973799032 | AW106: 0.9973368829 | AX106: 0.9972954506 | AY106: 0.9972446977 | AZ106: 0.9972008243 | BA106: 0.9971426789 | BB106: 0.997065817 | BC106: 0.9969980262 | BD106: 0.9969320636 | BE106: 0.9968548577 | BF106: 0.9967839536 | BG106: 0
A107: Weighted Average Loan Size | B107: 133030.75 | C107: 133376.29 | D107: 133656 | E107: 133489.15 | F107: 133703.15 | G107: 134038.88 | H107: 134639.6 | I107: 132190.89 | J107: 131069.4 | K107: 130649.88 | L107: 130460.6 | M107: 130144.97 | N107: 130036.03 | O107: 130074.14 | P107: 129889.98 | Q107: 129933.56 | R107: 129696.24 | S107: 129399.47 | T107: 129064.88 | U107: 128786.49 | V107: 128556.17 | W107: 128211.96 | X107: 128086.06 | Y107: 128073.68 | Z107: 127696.47 | AA107: 127499.95 | AB107: 127133.48 | AC107: 126985.43 | AD107: 126829.19 | AE107: 126712.15 | AF107: 126304.42 | AG107: 126158.6 | AH107: 125835.31 | AI107: 125614.3282 | AJ107: 125410.0359 | AK107: 124879.1424 | AL107: 124474.0492 | AM107: 124520.774 | AN107: 124138.6856 | AO107: 123828.594 | AP107: 123722.2519 | AQ107: 123565.5434 | AR107: 123129.6969 | AS107: 122537.855 | AT107: 122083.1059 | AU107: 121870.4806 | AV107: 121542.3587 | AW107: 121056.4918 | AX107: 120772.6226 | AY107: 120645.5888 | AZ107: 120461.6432 | BA107: 120340.3338 | BB107: 119779.7572 | BC107: 119836.8054 | BD107: 119852.058 | BE107: 119307.3038 | BF107: 119186.2322 | BG107: 0
A108: Weighted Average Interest Rate | B108: 0.04827 | C108: 0.04845 | D108: 0.04893 | E108: 0.0497 | F108: 0.04992 | G108: 0.05058 | H108: 0.05536 | I108: 0.05653 | J108: 0.05463 | K108: 0.05445 | L108: 0.05002 | M108: 0.0414 | N108: 0.03564 | O108: 0.03121 | P108: 0.03073 | Q108: 0.03002 | R108: 0.02713 | S108: 0.02726 | T108: 0.02732 | U108: 0.02661 | V108: 0.02642 | W108: 0.02698 | X108: 0.02847 | Y108: 0.02863 | Z108: 0.02798 | AA108: 0.02491 | AB108: 0.02331 | AC108: 0.02316 | AD108: 0.02305 | AE108: 0.02317 | AF108: 0.02324 | AG108: 0.02323 | AH108: 0.02332 | AI108: 0.02360753655 | AJ108: 0.02354839058 | AK108: 0.02366170242 | AL108: 0.02371711191 | AM108: 0.02390736929 | AN108: 0.02380706329 | AO108: 0.02405896581 | AP108: 0.02410289958 | AQ108: 0.02206851172 | AR108: 0.02205896373 | AS108: 0.02176613682 | AT108: 0.02117648262 | AU108: 0.02102567674 | AV108: 0.02345412849 | AW108: 0.0240804492 | AX108: 0.02446044957 | AY108: 0.02629838689 | AZ108: 0.02723703189 | BA108: 0.0268206404 | BB108: 0.02626330309 | BC108: 0.02596376981 | BD108: 0.02616702988 | BE108: 0.0242779778 | BF108: 0.02038297971 | BG108: 0
A109: Weighted Average Maturity Date (years) | B109: 21.5 | C109: 21.26 | D109: 21.01 | E109: 20.77 | F109: 20.49 | G109: 20.24 | H109: 20 | I109: 19.68 | J109: 19.48 | K109: 19.21 | L109: 18.96 | M109: 18.73 | N109: 18.48 | O109: 18.24 | P109: 18 | Q109: 17.76 | R109: 17.51 | S109: 17.25 | T109: 17.01 | U109: 16.77 | V109: 16.54 | W109: 16.28 | X109: 16.03 | Y109: 15.77 | Z109: 15.55 | AA109: 15.33 | AB109: 15.06 | AC109: 14.82 | AD109: 14.56 | AE109: 14.33 | AF109: 14.12 | AG109: 13.86 | AH109: 13.62 | AI109: 13.38907376 | AJ109: 13.1485331 | AK109: 12.93490286 | AL109: 12.70609869 | AM109: 12.47606068 | AN109: 12.3372451 | AO109: 12.17398056 | AP109: 11.95495856 | AQ109: 11.7461102 | AR109: 11.51957227 | AS109: 11.26325791 | AT109: 11.02543178 | AU109: 10.77584713 | AV109: 10.5677591 | AW109: 10.38344034 | AX109: 10.13225945 | AY109: 9.919210743 | AZ109: 9.670203806 | BA109: 9.417181406 | BB109: 9.207846129 | BC109: 8.995946831 | BD109: 8.757794517 | BE109: 8.519225444 | BF109: 8.292567953 | BG109: 0
A110: Weighted Average Seasoning (months) | B110: 5.81 | C110: 8.83 | D110: 11.85 | E110: 14.87 | F110: 17.85 | G110: 20.84 | H110: 23.76 | I110: 26.77 | J110: 29.79 | K110: 32.8 | L110: 35.83 | M110: 38.72 | N110: 41.71 | O110: 44.73 | P110: 47.75 | Q110: 50.69 | R110: 53.69 | S110: 56.71 | T110: 59.74 | U110: 62.7 | V110: 65.69 | W110: 68.72 | X110: 71.74 | Y110: 74.73 | Z110: 77.73 | AA110: 80.75 | AB110: 83.78 | AC110: 86.73 | AD110: 89.72 | AE110: 92.75 | AF110: 95.75 | AG110: 98.72 | AH110: 101.71 | AI110: 104.7365156 | AJ110: 107.7387383 | AK110: 110.7032854 | AL110: 113.689506 | AM110: 116.6915829 | AN110: 119.6981475 | AO110: 122.7066811 | AP110: 125.6945657 | AQ110: 128.6278607 | AR110: 131.6565282 | AS110: 134.6229477 | AT110: 137.614329 | AU110: 140.6491625 | AV110: 143.6614858 | AW110: 146.6115341 | AX110: 149.5864812 | AY110: 152.6106965 | AZ110: 155.639268 | BA110: 158.5853131 | BB110: 161.5708724 | BC110: 164.5896839 | BD110: 167.6136757 | BE110: 170.6096488 | BF110: 173.6083747 | BG110: 0
A111: % of Interest Only Mortgages | B111: 0.9487 | C111: 0.9491 | D111: 0.9493 | E111: 0.9487 | F111: 0.9495 | G111: 0.9489 | H111: 0.949 | I111: 0.953 | J111: 0.9596 | K111: 0.9602 | L111: 0.9603 | M111: 0.9602 | N111: 0.9613 | O111: 0.9613 | P111: 0.9629 | Q111: 0.9632 | R111: 0.964 | S111: 0.964 | T111: 0.9644 | U111: 0.9648 | V111: 0.9655 | W111: 0.9967 | X111: 0.967 | Y111: 0.9665 | Z111: 0.9667 | AA111: 0.9662 | AB111: 0.9667 | AC111: 0.9666 | AD111: 0.9676 | AE111: 0.9684 | AF111: 0.9675 | AG111: 0.9682 | AH111: 0.9685 | AI111: 0.9691075063 | AJ111: 0.9685312473 | AK111: 0.9686502017 | AL111: 0.96856807 | AM111: 0.9696306674 | AN111: 0.9714133705 | AO111: 0.971430836 | AP111: 0.972075492 | AQ111: 0.9738819816 | AR111: 0.9739618222 | AS111: 0.9758690662 | AT111: 0.9766168057 | AU111: 0.9765780668 | AV111: 0.9765004781 | AW111: 0.9767589003 | AX111: 0.9771020073 | AY111: 0.9778635504 | AZ111: 0.9781789459 | BA111: 0.9785240241 | BB111: 0.9787870174 | BC111: 0.9799276354 | BD111: 0.9803859454 | BE111: 0.9804372847 | BF111: 0.9812924782 | BG111: 0
A112: % of Repayment Mortgages | B112: 0.0513 | C112: 0.0509 | D112: 0.0507 | E112: 0.0513 | F112: 0.0505 | G112: 0.0511 | H112: 0.051 | I112: 0.047 | J112: 0.0404 | K112: 0.0398 | L112: 0.0397 | M112: 0.0398 | N112: 0.0387 | O112: 0.0387 | P112: 0.0371 | Q112: 0.0368 | R112: 0.036 | S112: 0.036 | T112: 0.0356 | U112: 0.0352 | V112: 0.0345 | W112: 0.0333 | X112: 0.033 | Y112: 0.0335 | Z112: 0.0333 | AA112: 0.0338 | AB112: 0.0333 | AC112: 0.0334 | AD112: 0.0324 | AE112: 0.0316 | AF112: 0.0325 | AG112: 0.0318 | AH112: 0.0315 | AI112: 0.03089249371 | AJ112: 0.03146875268 | AK112: 0.0313497983 | AL112: 0.03143193003 | AM112: 0.03036933255 | AN112: 0.02858662952 | AO112: 0.02856916395 | AP112: 0.02792450804 | AQ112: 0.02611801835 | AR112: 0.02603817782 | AS112: 0.0241309338 | AT112: 0.02338319432 | AU112: 0.02342193324 | AV112: 0.02349952194 | AW112: 0.0232410997 | AX112: 0.02289799265 | AY112: 0.02213644958 | AZ112: 0.02182105413 | BA112: 0.02147597589 | BB112: 0.02121298263 | BC112: 0.02007236462 | BD112: 0.01961405465 | BE112: 0.01956271526 | BF112: 0.01870752182 | BG112: 0
A113: % of Mortgages in London | B113: 0.2356 | C113: 0.2362 | D113: 0.2363 | E113: 0.2355 | F113: 0.2348 | G113: 0.2344 | H113: 0.2337 | I113: 0.2114 | J113: 0.2016 | K113: 0.1994 | L113: 0.1985 | M113: 0.1965 | N113: 0.1964 | O113: 0.1946 | P113: 0.1945 | Q113: 0.195 | R113: 0.1928 | S113: 0.1927 | T113: 0.191 | U113: 0.1905 | V113: 0.1898 | W113: 0.187 | X113: 0.1863 | Y113: 0.1865 | Z113: 0.1853 | AA113: 0.1845 | AB113: 0.1849 | AC113: 0.1837 | AD113: 0.1827 | AE113: 0.1837 | AF113: 0.1839 | AG113: 0.1818 | AH113: 0.1811 | AI113: 0.1774248557 | AJ113: 0.1779356525 | AK113: 0.1740451659 | AL113: 0.1692252375 | AM113: 0.1683109287 | AN113: 0.1671011672 | AO113: 0.1638002132 | AP113: 0.1629307067 | AQ113: 0.1606186528 | AR113: 0.1573401512 | AS113: 0.1538914323 | AT113: 0.151903627 | AU113: 0.1461927496 | AV113: 0.1469051523 | AW113: 0.1469920291 | AX113: 0.1473687364 | AY113: 0.1475578809 | AZ113: 0.1482700154 | BA113: 0.148262383 | BB113: 0.1452666113 | BC113: 0.1454196608 | BD113: 0.147489828 | BE113: 0.1447229164 | BF113: 0.1412893526 | BG113: 0
A114: % of Mortgages in the South East | B114: 0.3723 | C114: 0.3718 | D114: 0.3718 | E114: 0.372 | F114: 0.3737 | G114: 0.3759 | H114: 0.3741 | I114: 0.364 | J114: 0.3604 | K114: 0.3619 | L114: 0.3602 | M114: 0.3612 | N114: 0.3631 | O114: 0.364 | P114: 0.3639 | Q114: 0.3635 | R114: 0.3644 | S114: 0.3624 | T114: 0.3638 | U114: 0.3626 | V114: 0.3625 | W114: 0.3624 | X114: 0.3614 | Y114: 0.3612 | Z114: 0.3621 | AA114: 0.3623 | AB114: 0.3604 | AC114: 0.3606 | AD114: 0.3599 | AE114: 0.3599 | AF114: 0.3572 | AG114: 0.3572 | AH114: 0.3563 | AI114: 0.3572028073 | AJ114: 0.3557554541 | AK114: 0.3555173161 | AL114: 0.3554950783 | AM114: 0.3563224471 | AN114: 0.3564834465 | AO114: 0.3554142703 | AP114: 0.3541787442 | AQ114: 0.3539675125 | AR114: 0.3509364113 | AS114: 0.3480508332 | AT114: 0.3478074147 | AU114: 0.3501227175 | AV114: 0.3447172373 | AW114: 0.3466174554 | AX114: 0.3450303901 | AY114: 0.3436813387 | AZ114: 0.3427581655 | BA114: 0.3407620323 | BB114: 0.3411635624 | BC114: 0.3401507025 | BD114: 0.338077974 | BE114: 0.3353220944 | BF114: 0.3362062538 | BG114: 0
A115: % of Owner Occupied Mortgages | B115: 0 | C115: 0 | D115: 0 | E115: 0 | F115: 0 | G115: 0 | H115: 0 | I115: 0 | J115: 0 | K115: 0 | L115: 0 | M115: 0 | N115: 0 | O115: 0 | P115: 0 | Q115: 0 | R115: 0 | S115: 0 | T115: 0 | U115: 0 | V115: 0 | W115: 0 | X115: 0 | Y115: 0 | Z115: 0 | AA115: 0 | AB115: 0 | AC115: 0 | AD115: 0 | AE115: 0 | AF115: 0 | AG115: 0 | AH115: 0 | AI115: 0 | AJ115: 0 | AK115: 0 | AL115: 0 | AM115: 0 | AN115: 0 | AO115: 0 | AP115: 0 | AQ115: 0 | AR115: 0 | AS115: 0 | AT115: 0 | AU115: 0 | AV115: 0 | AW115: 0 | AX115: 0 | AY115: 0 | AZ115: 0 | BA115: 0 | BB115: 0 | BC115: 0 | BD115: 0 | BE115: 0 | BF115: 0 | BG115: 0
A116: % of Investment Home Loans - Professional Landlords | B116: 0.2607 | C116: 0.2609 | D116: 0.2618 | E116: 0.2621 | F116: 0.2608 | G116: 0.2586 | H116: 0.2591 | I116: 0.2773 | J116: 0.285 | K116: 0.2843 | L116: 0.2832 | M116: 0.2813 | N116: 0.2828 | O116: 0.2837 | P116: 0.284 | Q116: 0.2833 | R116: 0.2843 | S116: 0.2846 | T116: 0.2845 | U116: 0.2844 | V116: 0.2865 | W116: 0.2879 | X116: 0.2894 | Y116: 0.2903 | Z116: 0.2914 | AA116: 0.2926 | AB116: 0.2942 | AC116: 0.2944 | AD116: 0.2935 | AE116: 0.2953 | AF116: 0.2966 | AG116: 0.2982 | AH116: 0.3 | AI116: 0.2996323465 | AJ116: 0.3006687001 | AK116: 0.3016014079 | AL116: 0.3020729772 | AM116: 0.3037913466 | AN116: 0.3050493008 | AO116: 0.3093280329 | AP116: 0.3099181336 | AQ116: 0.3049241061 | AR116: 0.305712869 | AS116: 0.3081182927 | AT116: 0.3083313321 | AU116: 0.3037797353 | AV116: 0.3041657917 | AW116: 0.3001746818 | AX116: 0.2985066367 | AY116: 0.2979684163 | AZ116: 0.2985273641 | BA116: 0.3016435424 | BB116: 0.3028151357 | BC116: 0.3009689626 | BD116: 0.3033329558 | BE116: 0.3096094382 | BF116: 0.3124058752 | BG116: 0
A117: % of Investment Home Loans - Emerging Professional Landlords | B117: 0.7393 | C117: 0.7391 | D117: 0.7382 | E117: 0.7379 | F117: 0.7392 | G117: 0.7414 | H117: 0.7409 | I117: 0.7227 | J117: 0.715 | K117: 0.7157 | L117: 0.7168 | M117: 0.7187 | N117: 0.7172 | O117: 0.7163 | P117: 0.716 | Q117: 0.7167 | R117: 0.7157 | S117: 0.7154 | T117: 0.7155 | U117: 0.7156 | V117: 0.7135 | W117: 0.7121 | X117: 0.7106 | Y117: 0.7097 | Z117: 0.7086 | AA117: 0.7074 | AB117: 0.7058 | AC117: 0.7056 | AD117: 0.7065 | AE117: 0.7047 | AF117: 0.7034 | AG117: 0.7018 | AH117: 0.7 | AI117: 0.7003676535 | AJ117: 0.6993312999 | AK117: 0.6983985921 | AL117: 0.6979270228 | AM117: 0.6962086534 | AN117: 0.6949506992 | AO117: 0.6906719671 | AP117: 0.6900818664 | AQ117: 0.6950758939 | AR117: 0.694287131 | AS117: 0.6918817073 | AT117: 0.6916686679 | AU117: 0.6962202647 | AV117: 0.6958342083 | AW117: 0.6998253182 | AX117: 0.7014933633 | AY117: 0.7020315837 | AZ117: 0.7014726359 | BA117: 0.6983564576 | BB117: 0.6971848643 | BC117: 0.6990310374 | BD117: 0.6966670442 | BE117: 0.6903905618 | BF117: 0.6875941248 | BG117: 0
A118: Weighted Average Interest Coverage Ratio (calculated at the origination date) | B118: 1.42 | C118: 1.42 | D118: 1.42 | E118: 1.42 | F118: 1.42 | G118: 1.42 | H118: 1.42 | I118: 1.43 | J118: 1.42 | K118: 1.41 | L118: 1.41 | M118: 1.41 | N118: 1.42 | O118: 1.42 | P118: 1.42 | Q118: 1.42 | R118: 1.42 | S118: 1.42 | T118: 1.42 | U118: 1.42 | V118: 1.42 | W118: 1.42 | X118: 1.42 | Y118: 1.42 | Z118: 1.42 | AA118: 1.42 | AB118: 1.41 | AC118: 1.41 | AD118: 1.41 | AE118: 1.41 | AF118: 1.41 | AG118: 1.41 | AH118: 1.42 | AI118: 1.41601384 | AJ118: 1.416557208 | AK118: 1.417185006 | AL118: 1.418885072 | AM118: 1.419319999 | AN118: 1.419466227 | AO118: 1.419023251 | AP118: 1.419775516 | AQ118: 1.422583583 | AR118: 1.422843582 | AS118: 1.424852311 | AT118: 1.425181804 | AU118: 1.427646796 | AV118: 1.427234685 | AW118: 1.430410338 | AX118: 1.431335733 | AY118: 1.431413007 | AZ118: 1.431655475 | BA118: 1.432520321 | BB118: 1.433038517 | BC118: 1.434045079 | BD118: 1.435398973 | BE118: 1.436167511 | BF118: 1.437092095 | BG118: 0
A119: MTL Lifetime Redemption Rate | B119: 0.0338 | C119: 0.0294 | D119: 0.0299 | E119: 0.0409 | F119: 0.0498 | G119: 0.0547 | H119: 0.0739 | I119: 0.1678 | J119: 0.1935 | K119: 0.1857 | L119: 0.176 | M119: 0.1685 | N119: 0.159 | O119: 0.1514 | P119: 0.1445 | Q119: 0.1377 | R119: 0.1321 | S119: 0.1276 | T119: 0.1228 | U119: 0.1184 | V119: 0.1149 | W119: 0.1113 | X119: 0.1076 | Y119: 0.1041 | Z119: 0.1017 | AA119: 0.0994 | AB119: 0.0972 | AC119: 0.0947 | AD119: 0.0923 | AE119: 0.0903 | AF119: 0.0892 | AG119: 0.0876 | AH119: 0.0869 | AI119: 0.0863 | AJ119: 0.0857 | AK119: 0.0851 | AL119: 0.0851 | AM119: 0.0845 | AN119: 0.085 | AO119: 0.0854 | AP119: 0.0851 | AQ119: 0.0847 | AR119: 0.0851 | AS119: 0.0852 | AT119: 0.0849 | AU119: 0.0849 | AV119: 0.0851 | AW119: 0.0848 | AX119: 0.0845 | AY119: 0.0845 | AZ119: 0.0843 | BA119: 0.0844 | BB119: 0.0847 | BC119: 0.0848 | BD119: 0.0847 | BE119: 0.0849 | BF119: 0.0848 | BG119: 1
A120: Aggregate Potential Redraw Amount | B120: 769998.41 | C120: 493798.73 | D120: 453323.7 | E120: 422068.77 | F120: 604443.84 | G120: 588461.16 | H120: 701773.15 | I120: 801023.99 | J120: 612137.99 | K120: 899854.04 | L120: 848798.61 | M120: 768910.41 | N120: 459090.79 | O120: 366467.17 | P120: 287912.66 | Q120: 298267.75 | R120: 309121.39 | S120: 269547.33 | T120: 288733.27 | U120: 300352.78 | V120: 302382.66 | W120: 277656.47 | X120: 272579.84 | Y120: 172823.21 | Z120: 162354.04 | AA120: 180453.01 | AB120: 172693.32 | AC120: 167134.54 | AD120: 188211.22 | AE120: 0 | AF120: 0 | AG120: 0 | AH120: 0 | AI120: 0 | AJ120: 0 | AK120: 0 | AL120: 0 | AM120: 0 | AN120: 0 | AO120: 0 | AP120: 0 | AQ120: 0 | AR120: 0 | AS120: 0 | AT120: 0 | AU120: 0 | AV120: 0 | AW120: 0 | AX120: 0 | AY120: 0 | AZ120: 0 | BA120: 0 | BB120: 0 | BC120: 0 | BD120: 0 | BE120: 0 | BF120: 0 | BG120: 0
A121: Number of Properties in Possession | B121: 0 | C121: 0 | D121: 0 | E121: 0 | F121: 0 | G121: 0 | H121: 1 | I121: 1 | J121: 1 | K121: 1 | L121: 0 | M121: 0 | N121: 0 | O121: 0 | P121: 0 | Q121: 1 | R121: 1 | S121: 0 | T121: 0 | U121: 0 | V121: 0 | W121: 0 | X121: 0 | Y121: 0 | Z121: 0 | AA121: 0 | AB121: 1 | AC121: 0 | AD121: 0 | AE121: 0 | AF121: 0 | AG121: 0 | AH121: 0 | AI121: 0 | AJ121: 0 | AK121: 0 | AL121: 0 | AM121: 0 | AN121: 0 | AO121: 0 | AP121: 0 | AQ121: 0 | AR121: 0 | AS121: 0 | AT121: 0 | AU121: 0 | AV121: 0 | AW121: 0 | AX121: 0 | AY121: 0 | AZ121: 0 | BA121: 0 | BB121: 0 | BC121: 0 | BD121: 0 | BE121: 0 | BF121: 0 | BG121: 0
A122: Appointment of a Receiver of Rent | B122: 1 | C122: 3 | D122: 10 | E122: 7 | F122: 13 | G122: 11 | H122: 12 | I122: 17 | J122: 30 | K122: 43 | L122: 73 | M122: 75 | N122: 85 | O122: 80 | P122: 76 | Q122: 70 | R122: 69 | S122: 65 | T122: 65 | U122: 64 | V122: 65 | W122: 69 | X122: 68 | Y122: 65 | Z122: 71 | AA122: 69 | AB122: 68 | AC122: 65 | AD122: 66 | AE122: 65 | AF122: 62 | AG122: 62 | AH122: 57 | AI122: 55 | AJ122: 51 | AK122: 46 | AL122: 43 | AM122: 44 | AN122: 42 | AO122: 42 | AP122: 39 | AQ122: 37 | AR122: 26 | AS122: 23 | AT122: 22 | AU122: 21 | AV122: 21 | AW122: 22 | AX122: 20 | AY122: 20 | AZ122: 19 | BA122: 22 | BB122: 22 | BC122: 21 | BD122: 20 | BE122: 18 | BF122: 18 | BG122: 0
A123: MTL Losses | B123: 0 | C123: 0 | D123: 0 | E123: 0 | F123: 4 | G123: 4 | H123: 0 | I123: 16 | J123: 46 | K123: 66 | L123: 8 | M123: 328 | N123: 293 | O123: 312 | P123: 259 | Q123: 287 | R123: 0 | S123: 129 | T123: 11 | U123: -23 | V123: 15 | W123: 12 | X123: 9 | Y123: 36 | Z123: -22 | AA123: 134 | AB123: -104 | AC123: 38 | AD123: -35 | AE123: 114 | AF123: 94 | AG123: 145 | AH123: -17 | AI123: -15 | AJ123: 41 | AK123: -42 | AL123: -6 | AM123: 56 | AN123: 99 | AO123: -15 | AP123: 27 | AQ123: 82 | AR123: 288 | AS123: -8 | AT123: 61 | AU123: -32 | AV123: -11 | AW123: -14 | AX123: -1 | AY123: -3 | AZ123: 68 | BA123: -38 | BB123: 0 | BC123: 24 | BD123: 112 | BE123: 13 | BF123: -1 | BG123: 74
A124: Arrears excluding Receiver of Rent and Possession Cases
A125: Performing Loans | B125: 0.9975 | C125: 0.9939 | D125: 0.994 | E125: 0.9942 | F125: 0.9949 | G125: 0.9924 | H125: 0.9908 | I125: 0.989 | J125: 0.9826 | K125: 0.9797 | L125: 0.978 | M125: 0.9821 | N125: 0.9828 | O125: 0.9845 | P125: 0.9896 | Q125: 0.9951 | R125: 0.9962 | S125: 0.993 | T125: 0.9973 | U125: 0.9964 | V125: 0.9921 | W125: 0.9933 | X125: 0.9948 | Y125: 0.9937 | Z125: 0.992 | AA125: 0.9921 | AB125: 0.9942 | AC125: 0.9974 | AD125: 0.9986 | AE125: 0.9981 | AF125: 0.9952 | AG125: 0.9989 | AH125: 0.9993 | AI125: 0.999170791 | AJ125: 0.998300128 | AK125: 0.9987768935 | AL125: 0.9946795002 | AM125: 0.9968101776 | AN125: 0.9956542532 | AO125: 0.9995662683 | AP125: 0.9985612377 | AQ125: 0.9973904857 | AR125: 0.9971142152 | AS125: 0.9971727667 | AT125: 0.9976644383 | AU125: 0.9976120032 | AV125: 0.9972661554 | AW125: 0.9971059761 | AX125: 1 | AY125: 0.9972014049 | AZ125: 0.9945373609 | BA125: 0.995445668 | BB125: 0.9942258606 | BC125: 0.9959471608 | BD125: 0.9959686653 | BE125: 0.9966175592 | BF125: 0.9932436257 | BG125: 0
A126: >1 to 2 months arrears | B126: 0.0015 | C126: 0.0041 | D126: 0.0043 | E126: 0.0042 | F126: 0.0037 | G126: 0.0057 | H126: 0.0045 | I126: 0.0067 | J126: 0.0094 | K126: 0.0127 | L126: 0.0091 | M126: 0.0081 | N126: 0.0129 | O126: 0.0113 | P126: 0.0076 | Q126: 0.0037 | R126: 0.0029 | S126: 0.0056 | T126: 0.0025 | U126: 0.0017 | V126: 0.0057 | W126: 0.0067 | X126: 0.0036 | Y126: 0.0063 | Z126: 0.0073 | AA126: 0.0062 | AB126: 0.0036 | AC126: 0.0017 | AD126: 0.0012 | AE126: 0.0016 | AF126: 0.0044 | AG126: 0.0011 | AH126: 0.0007 | AI126: 0.0008292089625 | AJ126: 0.001405695054 | AK126: 0.00122310648 | AL126: 0.004924756218 | AM126: 0.002459165784 | AN126: 0.004275778083 | AO126: 0.0004337317225 | AP126: 0.0009755317383 | AQ126: 0.002609514256 | AR126: 0.002369048194 | AS126: 0.00282723335 | AT126: 0.00233556168 | AU126: 0.002387996805 | AV126: 0.002733844552 | AW126: 0.002894023867 | AX126: 0 | AY126: 0.002798595061 | AZ126: 0.004737378818 | BA126: 0.003871297698 | BB126: 0.003497772361 | BC126: 0.003000202812 | BD126: 0.002678517006 | BE126: 0.002031282154 | BF126: 0.004975338756 | BG126: 0
A127: >2 to 3 months arrears | B127: 0.0008 | C127: 0.0018 | D127: 0.0017 | E127: 0.0009 | F127: 0.0009 | G127: 0.0007 | H127: 0.0028 | I127: 0.0033 | J127: 0.0036 | K127: 0.0047 | L127: 0.0081 | M127: 0.0052 | N127: 0.0025 | O127: 0.0011 | P127: 0.0018 | Q127: 0.001 | R127: 0.0003 | S127: 0.0006 | T127: 0.0002 | U127: 0.0019 | V127: 0.0017 | W127: 0 | X127: 0.0016 | Y127: 0 | Z127: 0.0003 | AA127: 0.0015 | AB127: 0.0018 | AC127: 0 | AD127: 0.0002 | AE127: 0 | AF127: 0.0004 | AG127: 0 | AH127: 0 | AI127: 0 | AJ127: 0 | AK127: 0 | AL127: 0.0003957435991 | AM127: 0 | AN127: 0 | AO127: 0 | AP127: 0 | AQ127: 0 | AR127: 0 | AS127: 0 | AT127: 0 | AU127: 0 | AV127: 0 | AW127: 0 | AX127: 0 | AY127: 0 | AZ127: 0 | BA127: 0.0003850182545 | BB127: 0.001874370183 | BC127: 0.001052636355 | BD127: 0.0002771225779 | BE127: 0.0007454239511 | BF127: 0.001163121385 | BG127: 0
A128: >3 months arrears | B128: 0.0002 | C128: 0.0002 | D128: 0 | E128: 0.0007 | F128: 0.0005 | G128: 0.0012 | H128: 0.0019 | I128: 0.001 | J128: 0.0044 | K128: 0.0029 | L128: 0.0048 | M128: 0.0046 | N128: 0.0018 | O128: 0.0031 | P128: 0.001 | Q128: 0.0002 | R128: 0.0006 | S128: 0.0008 | T128: 0 | U128: 0 | V128: 0.0005 | W128: 0 | X128: 0 | Y128: 0 | Z128: 0.0004 | AA128: 0.0002 | AB128: 0.0004 | AC128: 0.0009 | AD128: 0 | AE128: 0.0003 | AF128: 0 | AG128: 0 | AH128: 0 | AI128: 0 | AJ128: 0.0002941769517 | AK128: 0 | AL128: 0 | AM128: 0.0007306565975 | AN128: 6.996869896e-05 | AO128: 0 | AP128: 0.0004632306099 | AQ128: 0 | AR128: 0.0005167365801 | AS128: 0 | AT128: 0 | AU128: 0 | AV128: 0 | AW128: 0 | AX128: 0 | AY128: 0 | AZ128: 0.0007252603069 | BA128: 0.0002980160915 | BB128: 0.0004019968799 | BC128: 0 | BD128: 0.00107569514 | BE128: 0.0006057346527 | BF128: 0.0006179141562 | BG128: 0
A129: Total | B129: =SUM(B125:B128) -> 1 | C129: 1 | D129: 1 | E129: 1 | F129: 1 | G129: 1 | H129: 1 | I129: 1 | J129: 1 | K129: 1 | L129: 1 | M129: 1 | N129: 1 | O129: 1 | P129: 1 | Q129: 1 | R129: 1 | S129: 1 | T129: 1 | U129: 1 | V129: 1 | W129: 1 | X129: =SUM(X125:X128) -> 1 | Y129: 1 | Z129: 1 | AA129: 1 | AB129: 1 | AC129: 1 | AD129: =SUM(AD125:AD128) -> 1 | AE129: 1 | AF129: 1 | AG129: 1 | AH129: 1 | AI129: 1 | AJ129: 1 | AK129: 1 | AL129: 1 | AM129: 1 | AN129: 1 | AO129: 1 | AP129: 1 | AQ129: 1 | AR129: 1 | AS129: 1 | AT129: 1 | AU129: 1 | AV129: 1 | AW129: 1 | AX129: 1 | AY129: 1 | AZ129: 1 | BA129: 1 | BB129: 1 | BC129: 1 | BD129: 1 | BE129: 1 | BF129: 1 | BG129: =SUM(BG125:BG128) -> 0

Sheet Graphs
O2: PARAGON MORTGAGES (NO.11) PLC
